Workbook

Sheet Instructions for translation
A2: Instructions for Translation
A4: Total number of English words for translation
A5: =SUM(Introduction!C56, 'Planned measures for reopening'!C40, 'Basic information about schools'!C107, 'School reopening status'!C24, 'Qty of additional resources'!C131, Calculators!C235, 'Prices of additional resources'!C101, Funding!C23, Report!C58, 'Items to purchase'!C51, 'Data prep'!A38, Output!A16, List_Economy!C287) -> 8862
A7: How to translate the names of the tabs?
A8: 1. Replace the English tab names with the translation
A9: 2. Update macros
A10: 1) Under the ribbon "Developer" -> Click on "View Code" -> Click on "Sheet 6 (Planned measures for reopening)" -> Replace each English tab name with its translation
A11: 2) Click on "Sheet 8 (Qty of additional resources)" -> Replace each English tab name with its translation
A13: Planned measures for reopening
A14: There is no need to translate the cells with the dropdown menu (i.e., Cell F24, Cell F26, Cell F27, Cell F28, Cell F31, Cell F32, Cell F34 and Cell F35).
A16: Basic information about schools
A17: 1. There is no need to translate the dropdown menu here, i.e., Cell F9
A18: 2. For the buttons and checkboxes,
A19: Under the ribbon "Developer" -> Click on "Design Mode" -> Click on each button or checkbox to translate the label.
A20: 3. For Cell C48, the text that needs to be translated is highlighted in red. ="4. Basic statistics of the education levels of interest (i.e., "&IF(Output!D3=TRUE,Output!D4,"")&" "&IF(Output!E3=TRUE,Output!E4,"")&" "&IF(Output!F3=TRUE,Output!F4,"")&" "&IF(Output!G3=TRUE,Output!G4,"")&" "&IF(Output!H3=TRUE,Output!H4,"")&" ) "&IF(F9 = "", "", "in "&CHOOSE(Output!C3,Output!C4,Output!C5,Output!C6,Output!C7,Output!C8)&"") &""
A22: School reopening status
A23: For texts within a formula, please do not translate the part within "& &".
A24: Take Cell 18 as an example. The text that needs to be translated is highlighted in red. ="<*The number of school days in all phases should sum up to "&N_school_days&".>"
A26: Qty of additional resources
A27: Under the ribbon "Developer" -> Click on "View Code" -> Click on "Sheet 8 (Qty of additional resources)" -> Overwrite "Must-have + Nice-to-have" and "Must-have" with your translation.
A29: Calculators
A30: There is no need to translate the table of contents. It will be updated automatically.
A31: You might need to reformat the spreadsheet after the translation.
A33: Prices of additional resources
A34: Don't forget to translate Columns J-K. :-)
A36: Funding
A38: Report
A39: For Cell C7, Cell E23, Cell I9, Cell L10, Cell I23, and Cell L24, please do not translate the part within "& &".
A40: For the rest of the report, translate the text in red only.
A42: Items to purchase
A44: List_Economy
A45: Only need to replace the country/economy names, marked in red. Please make sure that your translation aligns with the official translation used by the World Bank.
A47: Data prep
A48: Replace the text in red with the translation.
A50: Output
A51: Replace the text in red with the translation.
A53: Format cleaning
A54: After you complete the translation,
A55: 1) remove all the cells for word counting,
A56: 2) change the color of all the text to black,
A57: 3) delete this tab of "Notes for translation",
A58: 4) hide the spreadsheets of "Data prep", "Output" and "List_Economy".
A59: 5) protect each tab using the password cost by clicking on "Review" -> "Protect Sheet".
A61: If you have any questions on how to translate the tool, please contact Yilin Pan (ypan@worldbank.org).

Sheet Introduction
C1: Version 1.0 August 17, 2021
C2: Costing Tool for School Reopening and Learning Recovery
C3: Introduction
C5: 1. What is this tool for?
C6: Purposes i) Estimate the cost of implementing measures to ensure the safety of the education community, recover learning, and support the emotional wellbeing of children, while reaching the most marginalized populations; ii) Identify sources of additional funding; iii) Estimate funding gaps, if relevant; and iv) guide the implementation of school reopening and learning recovery.
C7: Audience Information generated from the tool would be useful for government officials, school leaders, international organizations and donors who are involved in the planning, budgeting, and financing of school reopening and learning recovery during and after the pandemic.
C8: Users We recommend that government officials or school leaders who are assigned to budgeting and planning for school reopening would collect the data needed for the tool and fill out the spreadsheets. Researchers, international organizations, donors, and foundations can also use the tool to provide technical assistance to governments and to estimate the costs of interventions implemented in response to the COVID-19 pandemic.
C10: 2. What are the components of the tool?
H12: Purpose of the spreadsheet | L12: Input | P12: Output
E14: Introduction | H14: Introduces what the tool is for and how to use the tool
E15: Planned measures for reopening | H15: Provides a list of measures that help ensure safety operations, sustain learning, support emotional wellbeing and reach the marginalized | L15: Please check the measures that apply to your context and specify whether they apply to reopened schools or all schools when applicable
E16: Basic information about schools | H16: Specifies the cost estimate of interest and describes the context that the cost estimate applies to | L16: Please describe the school reopening plan to cost out, specify which cost estimate is of interest, and provide some basic information about schools
E17: School reopening status | H17: Records the predicted school reopening status during the time period of interest | L17: Please fill out your predicted estimates of the percentage of schools that provide in-person classes and the percentage of students who attend in-person classes
E18: Quantities of additional resources | H18: Sets the parameters that affect the quantities of the additional resources needed | L18: Please specify your assumptions on resource needs and resource availability
E19: Calculators | H19: Facilitates the estimation of the quantities for some resources if you do not have specific numbers | L19: Please specify your assumptions on resource needs and resource availability
E20: Prices of additional resources | H20: Populates the quantities of the additional resources based on the parameters specified in previous pages and guides the users to specify the price of each resource | L20: Please specify the prices of the additional resources needed | P20: The quantities of the additional resources are populated automatically
E21: Funding | H21: Delineates the funding sources | L21: Please specify funding available from different sources and the percentage of funding that is subject to reallocation
E22: Report | H22: Summarizes the cost of the additional resources needed, the available funding and the financial gap if it exists | P22: A dashboard that summarizes the results is populated automatically
E23: Items to purchase | H23: Generates a list of resources that need to be purchased | P23: A list of the materials and equipment that need to be purchased is populated
C25: 3. How to use the tool?
C27: 1) Enable macros.
C38: 2) Input cells
C39: Following the navigation bar, fill out the input cells on the spreadsheets of "Planned measures for reopening", "Basic information about schools", "School reopening status", "Quantities of additional resources", "Calculators", "Prices of additional resources" and "Funding".
C41: 3) Output cells
C42: Formulas are set up in the output cells. Once you hover your mouse cursor over an output cell, you will see a description of the formula. By default, these cells are locked to reduce the possibility of unintentional changes. You can unlock these cells to customize the tool based on your needs. To unlock a spreadsheet, click on "Review" -> "Unprotect Sheet" and input the password cost.
C44: 4. Help
C46: To report bugs, suggest features to add or provide your overall feedback to help us improve the tool, submit a response | N46: here.
C47: For any other questions, please contact Yilin Pan (ypan@worldbank.org).
C49: 5. How to cite this tool?
C51: Yilin Pan, Alaka Holla, Nobuyuki Tanaka (2021). "Costing tool for school reopening plans, version 1.0". World Bank, Washington DC.
C55: Word count
C56: =SUM(IF(LEN(TRIM(B1:S53))=0,0,LEN(TRIM(B1:S53))-LEN(SUBSTITUTE(B1:S53," ",""))+1)) -> 676

Sheet Planned measures for reopening
C6: <Check the measures that apply to your context> | F6: <Specify whether the measures apply to all schools or reopened schools when color-coded>
D7: Measures | E7: Explanation of the measures | F7: Applicable to | G7: Cost implications
D8: Pillar 1: Measures related to safe operations
D9: Establish cleaning and disinfecting measures | E9: Schedule regular cleaning of the school facilities. Clean and disinfect classrooms and spaces used for instruction, common spaces, gyms, toilets, as well as frequently touched surfaces such as door handles, desks, toys, supplies, light switches, doorframes, play equipment, teaching aids used by children, and covers of books. | F9: Reopened schools | G9: Increase in cost | J9: P101
D10: Provide personal protective equipment | E10: Enforce the school policy on wearing a mask or a face covering in line with national or local guidance. Provide sufficient medical masks for students and personnel. Introduce students with sensory concerns/tactile sensitivities to face coverings that are most comfortable for them. | F10: Reopened schools | G10: Increase in cost | J10: P102
D11: Provide hand hygiene materials | E11: Create a schedule for frequent hand hygiene, especially for young children. Ensure handwashing strategies include washing with soap and water for at least 20 seconds. Handwashing/hand hygiene stations should be set up at school entrances and throughout the school (e.g., entrances and exits of gym and sports facilities, bathrooms, cafeteria, and classrooms). | F11: Reopened schools | G11: Increase in cost | J11: P103
D12: Provide on-site health screenings | E12: Conduct simple health screening for body temperature and high-risk symptoms on entry into the building for all staff, students and visitors. | F12: Reopened schools | G12: Increase in cost | J12: P104
D13: Monitor symptoms through parent-reported surveys | E13: Develop questionnaire/health survey to monitor history of fever and other symptoms. Parents, guardians, and caregivers can self-report the answers to these questions through existing school health portals or school communication platforms. Schools can also share the results with parents and aid in daily reporting. | F13: Reopened schools | G13: Increase in cost | J13: P105
D14: Limit sharing objects | E14: Ensure adequate supplies to minimize sharing of high touch materials to the extent possible (e.g., assigning each student their own art supplies, equipment) or limit use of supplies and equipment by one group of children at a time and clean and disinfect between use. Avoid sharing electronic devices, toys, books, and other games or learning aids. | F14: Reopened schools | G14: Increase in cost | J14: P106
D15: Ensure spaces, materials, and strategies to maintain physical and social distancing | E15: Increase desk spacing (at least 1.5 meters between desks). Repurpose unused or underutilized school (or community) spaces to increase classroom space and facilitate social distancing, including outside spaces. Stagger arrival and dismissal times, recesses/breaks and lunchbreak. Minimize shared break times. | F15: Reopened schools | G15: Increase in cost | J15: P107
D16: Establish physical barriers and guides | E16: Install physical barriers, such as sneeze guards and partitions. Provide physical guides, such as tape on floors or sidewalks and signs on walls (e.g., guides for creating “one way routes” in hallways). Add physical barriers, such as plastic flexible screens, between bathroom sinks especially when they cannot be at least 6 feet apart. | F16: Reopened schools | G16: Increase in cost | J16: P108
D17: Train students, teachers, staff, and parents on safe school operations | E17: Educate everyone in the school about COVID-19 prevention and safety protocols. Explain to the students the reason for school-related measures (promote cough and sneeze etiquette and discuss need for safety protocols, existence of different sensitivities, hand-hygiene protocols especially after going to the bathroom, before eating, and after blowing your nose, coughing, or sneezing). Inform parents about the measures the school is putting in place and ask for cooperation to report any cases of COVID-19 that occur in the household and on the importance of monitoring for and responding to the symptoms of COVID-19 at home, protocols for accompanying and picking up students, etc.). Offer weekly updates on these as the pandemic evolves. Broadcast regular announcements on reducing the spread of COVID-19 on PA systems. Include messages (for example, videos) about behaviors that prevent the spread of COVID-19 when communicating with staff and families (such as on school websites, in emails, and on school social media accounts). Post signs in highly visible locations (e.g., school entrances, restrooms) that promote everyday protective measures and describe how to stop the spread of germs. | F17: Reopened schools | G17: Increase in cost | J17: P109
D18: Maintain appropriate collaboration and coordination with local public health authorities. | E18: Provide public health officers with information needed to trace contacts if a case or outbreak occurs in the school as well as with parents. The school officials should notify public health authorities in case of a positive COVID-19 case. Develop a plan with state and local health department to conduct case tracing in the event of a positive case in the school. Ensure students who have been in contact with a COVID-19 case stay home for 14 days. | F18: Reopened schools | G18: Increase in cost | J18: P110
D19: Adapt transportation | E19: Put in place respiratory and hand hygiene and physical distancing measures in transportation such as school buses, and tips for students on safe commute to and from school, including those using public transport. Only 1 child per seat and at least 1 meter apart in school buses, if possible. If possible, windows of the bus should be kept open. Students, driver and companion must travel with masks. Drivers must keep a daily driving record of the students on board. Advise against crowding during school pick-up or day care. | F19: Reopened schools | G19: Increase in cost | J19: P111
D20: Adapt ventilation | E20: Ventilation systems should be operating properly and, when possible, circulation of outside air should be increased, for example by opening windows and doors. | F20: Reopened schools | G20: Increase in cost | J20: P112
D21: Reorganize lunch programs | E21: Consider options such as “grab-and-go” bagged lunches or meal delivery. Use disposable food service items (e.g., utensils, dishes). Enhance hygiene and screening for illness among food preparation staff and their close contacts. | F21: Reopened schools | G21: Increase in cost | J21: P113
D22: Cancel field trips, assemblies, and other large gatherings | E22: Cancel field trips, events, and extracurricular activities that involve the gathering of people. | F22: All schools, regardless of their reopening status | G22: Potential savings | J22: P114
D23: Pillar 2: Measures to recover learning
D24: Provide teacher professional development | E24: Provide professional development that is more practical and targeted at meeting specific instruction needs of teachers, for example, training on how to use computers for instructions. | F24: All schools, regardless of their reopening status | G24: Increase in cost | J24: P201
D25: Continue flexible or partial remote learning approaches | E25: Continue remote learning practices, by blended methods where necessary and possible (e.g., some student groups could take online classes, learn from home through homework assignments, blogs, engage in at-home physical activity). If tele-schooling is not possible, invite students to take textbooks home or arrange to deliver assignments. Consider radio or television broadcasts of lessons, arrange a buddy system for homework with older siblings at home, or with friends by telephone. | F25: All schools, regardless of their reopening status | G25: Increase in cost | J25: P202
D26: Conduct diagnosis assessments | E26: Prepare teachers to assess learning needs and to meet each student where he/she is. Provide training for teachers’ on how to assess students' needs, well-being and performance. | F26: Reopened schools | G26: Increase in cost | J26: P203
D27: Increase intensity and differentiation (personalized learning) | E27: Implement large-scale remedial/accelerated learning programs. If possible, hire teaching aids to provide one-to-one or one-to-multiple tutoring sessions. | F27: Reopened schools | G27: Increase in cost | J27: P204
D28: Extend schedules | E28: Expand schedules, especially for students who are falling behind. If necessary, use summer time to make up some of the missing school days to alleviate the learning loss. | F28: Reopened schools | G28: Increase in cost | J28: P205
D29: Hire new teachers, reorganize the working shifts or extend the working hours of teachers | E29: Hire new teachers, reorganize the working shifts or extend the working hours of teachers to i) ensure smaller class size and ii) substitute for sick teachers. Reassign most at risk teachers (age, co-morbidities) to distance learning or administrative tasks. | F29: Reopened schools | G29: Increase in cost | J29: P206
D30: Pillar 3: Measures to support emotional wellbeing and recovery
D31: Provide dedicated psychosocial support and counselling | E31: In countries where educational institutions have professional counselors or psychologists who would respond to students with psychosocial needs, schools may need to be well prepared for a surge in demand by increasing the number of counselors or extending their service hours. But in countries where schools have no (or few) counselors, teachers may have to take the responsibility to provide students with some psychosocial support. Promote employees and students eating healthy, exercising, getting sleep, and finding time to unwind. Encourage employees and students to talk with people they trust about their concerns and how they are feeling. | F31: Reopened schools | G31: Increase in cost | J31: P301
D32: Adopt social and emotional learning (SEL) programs | E32: Foster relationships between students, between students and adults at school. Reduce stigma. Support students and teachers’ social and emotional wellbeing. | F32: Reopened schools | G32: Increase in cost | J32: P302
D33: Pillar 4: Measures to reach the most marginalized
D34: Provide adequate supports for recovery needs, especially for disadvantaged and vulnerable students | E34: Depending on country context, these include refugees, migrants, minorities, girls, those living in poverty and in remote geographical areas or urban slums, children with disabilities, those who lack nutrition and protection, those exposed to child labor, violence and other adverse conditions, those who are enduring increased hardship and for students who have not been able to participate in online or home-based learning. Include clear face coverings on school supply lists for teachers and staff who regularly interact with students who are deaf or hard of hearing, students learning to read, students with disabilities, and those who rely on lip reading as a part of learning. Provide personalized instructions or after-school programs to help students with special needs to catch up. For girls, prevent gender-based violence at school, including providing separate sanitation facilities for girls and boys; eliminating policies that prohibit pregnant girls or young mothers from returning to school; and providing access to gender-equitable sex education. | F34: Reopened schools | G34: Increase in cost | J34: P401
D35: Conduct reenrollment campaigns and wraparound supports to prevent dropouts | E35: The support would include financial and nonfinancial incentives, e.g., feeding programs, provision of school uniforms, provision of direct cash transfer, or removing or waiving school fees and other barriers preventing school attendance. Provide social and emotional support for out-of-school children. Ensure age-appropriate and frequent follow-up and support for children out of school and avoid penalizing or stigmatizing such students. Ensure that the enrollment process is easy to navigate and that procedural barriers to re-enrollment are low. | F35: Reopened schools | G35: Increase in cost | J35: P402
D36: Monitor and plan for absenteeism | E36: Review the usual absenteeism patterns at the school among both students and staff. Alert local health officials about large increases in student and staff absenteeism. | F36: Reopened schools | G36: Increase in cost | J36: P403
C39: Word count
C40: =SUM(IF(LEN(TRIM(B1:H37))=0,0,LEN(TRIM(B1:H37))-LEN(SUBSTITUTE(B1:H37," ",""))+1)) -> 1699

Sheet Basic information about schools
H5: <Following the questions and fill out the input cells>
C7: Basic school information
C9: 1. Country/economy | F9: India | H9: <Please choose the country/economy from the dropdown list>
C11: 2. The school reopening plan to cost out
D13: 1) Name of the document
D14: Guidelines on how to open schools step by step in Malgudi
D16: 2) Link to the document
D19: 3) Which educational levels does the school opening plan apply to?
D20: K-12
C22: 3. Which cost estimate is of interest to you?
D24: 1) Are you interested in estimating the cost of reopening schools for the whole country, a region/province/district, or a school?
G27: Malgudi | H27: <Please specify the name of the region>
H28: <Please specify the name of the province/state>
H29: <Please specify the name of the district>
H30: <Please specify the name of the school>
D33: 2) Which education level(s) do you want to cost out? For each education level you check, please specify the grade levels that provide in-person classes.
G35: Ages 3-5 | H35: <Please specify the grade levels or age groups>
G36: K-3 | H36: <Please specify the grade levels>
H37: <Please specify the grade levels>
H38: <Please specify the grade levels>
H39: <Please specify the grade levels>
D42: 3) Which time period does the cost estimate apply to, e.g., January - December 2021, the spring semester of 2021, the first quarter of 2021, academic year 2021-2022?
D43: The Fall sesmeter of 2021
D45: ="Number of school days during the time period of interest, i.e., "&LOWER(D43)&"" -> Number of school days during the time period of interest, i.e., the fall sesmeter of 2021 | G45: 90 | H45: days
D46: Number of school days in an academic year | G46: 180 | H46: days
C48: ="4. Basic statistics of the education levels of interest (i.e., "&IF(Output!D3=TRUE,Output!D4,"")&" "&IF(Output!E3=TRUE,Output!E4,"")&" "&IF(Output!F3=TRUE,Output!F4,"")&" "&IF(Output!G3=TRUE,Output!G4,"")&" "&IF(Output!H3=TRUE,Output!H4,"")&" ) "&IF(F9 = "", "", "in "&CHOOSE(Output!C3,Output!C4,Output!C5,Output!C6,Output!C7,Output!C8)&"") &"" -> 4. Basic statistics of the education levels of interest (i.e., pre-primary education, primary education, ) in Malgudi, India
D50: Students, schools and classes
D51: Number of students | G51: 2000
D52: Number of schools | G52: 10 | H52: Private schools included
D53: Number of classes | G53: 100
D55: Number of students per school | G55: =IF(ISERROR(N_student/N_school), "", N_student/N_school) -> 200
D56: Number of students per class | G56: =IF(ISERROR(N_student/N_class), "", N_student/N_class) -> 20
D57: Number of students with special needs | G57: 100
G60: Total | I60: Currently available | J60: Newly hired
D61: Teachers and school staff | G61: =SUM(N_teacher, N_management_staff, N_teaching_aid, N_cleaner, N_nurse, N_driver, N_food_staff, N_technician, N_counselor, N_psychologist, N_social_worker, N_mobilizer, N_other_staff) -> 256 | I61: =SUM(N_teacher_current, N_management_staff_current, N_teaching_aid_current, N_cleaner_current, N_nurse_current, N_driver_current, N_food_staff_current, N_technician_current, N_counselor_current, N_psychologist_current, N_social_worker_current, N_mobilizer_current, N_other_staff_current) -> 235 | J61: =SUM(N_newly_hired_teacher, N_newly_hired_management_staff, N_newly_hired_teaching_aid, N_newly_hired_cleaner, N_newly_hired_nurse, N_newly_hired_driver, N_newly_hired_food_staff, N_newly_hired_technician, N_newly_hired_counselor, N_newly_hired_psychologist, N_newly_hired_social_worker, N_newly_hired_mobilizer, N_newly_hired_other_staff) -> 21
D62: Number of teachers | G62: =N_teacher_current + N_newly_hired_teacher -> 105 | I62: 100 | J62: 5 | K62: <Calculator 1.1 helps you estimate the demand of new teachers>
D63: Number of management staff | G63: =N_management_staff_current + N_newly_hired_management_staff -> 30 | I63: 30 | K63: <Assume no new management staff are hired, but this can be overwritten.>
D64: Number of teaching aids | G64: =N_teaching_aid_current + N_newly_hired_teaching_aid -> 25 | I64: 15 | J64: 10 | K64: <Calculator 1.2 helps you estimate the demand of teaching aids>
D65: Number of non-teaching staff
D66: Cleaning staff | G66: =N_cleaner_current + N_newly_hired_cleaner -> 20 | I66: 20 | J66: 0 | K66: <Calculator 1.3 helps you estimate the demand of cleaning staff>
D67: School nurses | G67: =N_nurse_current + N_newly_hired_nurse -> 12 | I67: 10 | J67: 2 | K67: <Calculator 1.3 helps you estimate the demand of school nurses>
D68: School bus drivers | G68: =N_driver_current + N_newly_hired_driver -> 10 | I68: 10 | K68: <Assume no new bus drivers are hired, but this can be overwritten.>
D69: Food service staff | G69: =N_food_staff_current + N_newly_hired_food_staff -> 20 | I69: 20 | K69: <Assume no new food service staff are hired, but this can be overwritten.>
D70: Technical support staff | G70: =N_technician_current + N_newly_hired_technician -> 11 | I70: 10 | J70: 1 | K70: <Calculator 1.3 helps you estimate the demand of technicians>
D71: Counselors | G71: =N_counselor_current + N_newly_hired_counselor -> 6 | I71: 5 | J71: 1 | K71: <Calculator 1.3 helps you estimate the demand of counselors>
D72: Psychologists | G72: =N_psychologist_current + N_newly_hired_psychologist -> 6 | I72: 5 | J72: 1 | K72: <Calculator 1.3 helps you estimate the demand of psychologists>
D73: Social workers | G73: =N_social_worker_current + N_newly_hired_social_worker -> 6 | I73: 5 | J73: 1 | K73: <Calculator 1.3 helps you estimate the demand of social workers>
D74: Social mobilizers for the enrollment campaign | G74: =N_mobilizer_current + N_newly_hired_mobilizer -> 5 | I74: 5 | J74: 0 | K74: <Calculator 1.3 helps you estimate the demand of social mobilizers>
D75: Other | G75: =N_other_staff_current + N_newly_hired_other_staff -> 0 | I75: 0 | J75: 0
D78: Number of teachers who work closely with students with special needs | G78: =IF(ISERROR(N_teacher * (N_student_special_needs/N_student)), "", N_teacher * (N_student_special_needs/N_student)) -> 5.25 | H78: <The default setting assumes this number is proportional to the # of students with special needs>
D80: School bus | S80: 111
D81: % of students who take school buses
E82: In the COVID-19 era | G82: 0.3 | H82: among those who attend school
E83: In the pre-COVID-19 era | G83: 0.5 | H83: among those who attend school
D84: Full capacity of school buses on average | G84: 20 | H84: students per bus
D86: School lunch | S86: 113
D87: % of schools who have lunch at school now | G87: 0.9 | H87: among those who attend school
D89: Diagnostic assessments | S89: 203
D90: % of students to test | G90: 0.95
D92: Personalized learning (in the format of tutoring) | S92: 204
D93: % of students who need personalized learning | G93: 0.2
D95: Facilities
D96: How many classrooms share a restroom? | G96: 4
D97: Teachers in how many classrooms share an office? | G97: 4
C99: 5. In which currency is the cost expressed? | G99: MRupee
C101: 6. In which year do you want to express the cost? | G101: 2021
D103: .
C106: Word count
C107: =SUM(IF(LEN(TRIM(B68:Q104))=0,0,LEN(TRIM(B68:Q104))-LEN(SUBSTITUTE(B68:Q104," ",""))+1)) -> 261

Sheet School reopening status
C7: ="School reopening status during "&LOWER('Basic information about schools'!D43)&"" -> School reopening status during the fall sesmeter of 2021
C8: <If schools or students return to in-person classes in phase, please specify the percentage of schools that provide in-person classes, the percentage of students who attend in-person classes, and the number of school days for each phase. If not, just fill out the three parameters in Phase 1.>
H9: Phase 1 | J9: Phase 2 | L9: Phase 3 | N9: Phase 4 | P9: Phase 5 | R9: ="Average across "&LOWER('Basic information about schools'!D43)&"" -> Average across the fall sesmeter of 2021
C10: % of schools that provide in-person classes | H10: 0.4 | J10: 0.8 | L10: 0.95 | R10: =IF(ISERROR((pct_school_reopen_phase1 * N_school_day_phase1 + pct_school_reopen_phase2 * N_school_day_phase2 + pct_school_reopen_phase3 * N_school_day_phase3 + pct_school_reopen_phase4 * N_school_day_phase4 + pct_school_reopen_phase5 * N_school_day_phase5)/(N_school_day_phase1 + N_school_day_phase2 + N_school_day_phase3 + N_school_day_phase4 + N_school_day_phase5)), "", (pct_school_reopen_phase1 * N_school_day_phase1 + pct_school_reopen_phase2 * N_school_day_phase2 + pct_school_reopen_phase3 * N_school_day_phase3 + pct_school_reopen_phase4 * N_school_day_phase4 + pct_school_reopen_phase5 * N_school_day_phase5)/(N_school_day_phase1 + N_school_day_phase2 + N_school_day_phase3 + N_school_day_phase4 + N_school_day_phase5)) -> 0.7166666667
C12: % of students who attend in-person classes | H12: 0.5 | J12: 0.85 | L12: 0.95 | R12: =IF( ISERROR((pct_student_in_school_phase1 * N_school_day_phase1 + pct_student_in_school_phase2 * N_school_day_phase2 + pct_student_in_school_phase3 * N_school_day_phase3 + pct_student_in_school_phase4 * N_school_day_phase4 + pct_student_in_school_phase5 * N_school_day_phase5)/(N_school_day_phase1 + N_school_day_phase2 + N_school_day_phase3 + N_school_day_phase4 + N_school_day_phase5)), "", (pct_student_in_school_phase1 * N_school_day_phase1 + pct_student_in_school_phase2 * N_school_day_phase2 + pct_student_in_school_phase3 * N_school_day_phase3 + pct_student_in_school_phase4 * N_school_day_phase4 + pct_student_in_school_phase5 * N_school_day_phase5)/(N_school_day_phase1 + N_school_day_phase2 + N_school_day_phase3 + N_school_day_phase4 + N_school_day_phase5)) -> 0.7666666667
C14: Number of school days (in days)* | H14: 30 | J14: 30 | L14: 30
C16: % of teachers and school staff that are present in school ** | H16: =H10 -> 0.4 | J16: =J10 -> 0.8 | L16: =L10 -> 0.95 | N16: =N10 -> 0 | P16: =P10 -> 0 | R16: =IF(ISERROR((pct_teacher_staff_in_school_phase1*N_school_day_phase1+pct_teacher_staff_in_school_phase2*N_school_day_phase2+pct_teacher_staff_in_school_phase3*N_school_day_phase3+pct_teacher_staff_in_school_phase4*N_school_day_phase4+pct_teacher_staff_in_school_phase5*N_school_day_phase5)/(N_school_day_phase1+N_school_day_phase2+N_school_day_phase3+N_school_day_phase4+N_school_day_phase5)),"",(pct_teacher_staff_in_school_phase1*N_school_day_phase1+pct_teacher_staff_in_school_phase2*N_school_day_phase2+pct_teacher_staff_in_school_phase3*N_school_day_phase3+pct_teacher_staff_in_school_phase4*N_school_day_phase4+pct_teacher_staff_in_school_phase5*N_school_day_phase5)/(N_school_day_phase1+N_school_day_phase2+N_school_day_phase3+N_school_day_phase4+N_school_day_phase5)) -> 0.7166666667
C18: ="<*The number of school days in all phases should sum up to "&N_school_days&".>" -> <*The number of school days in all phases should sum up to 90.>
C19: <**The default setting assumes that the number of teachers and school staff that are present in school is proportional to the number of schools that provide in-person classes. You may revise it based on your context. For example, if larger schools are more likely to reopen, the % of teachers and school staff that are present would be higher than the % of schools that provide in-person classes. If only certain grades go back to in-person classes in these reopened schools, the % of teachers and school staff that are present in schools would be approximate to the % of students who attend in-person classes.>
C23: Word count
C24: =SUM(IF(LEN(TRIM(B1:T21))=0,0,LEN(TRIM(B1:T21))-LEN(SUBSTITUTE(B1:T21," ",""))+1)) -> 241

Sheet Qty of additional resources
F6: <Check whether the default settings make sense to you. If not, revise based on your context>
C7: Checked measures | D7: Additional resources | E7: Parameter settings | G7: Notes
C8: Pillar 1: Actions related to safe operations
C9: Establish cleaning and disinfecting measures | D9: Disinfectant | G9: See Calculator 2.1 for details | J9: P101
D10: Empty containers for diluting cleaning and disinfection products | E10: 1 | F10: container(s) per cleaner (goal)
E11: 0.5 | F11: container(s) per cleaner (current availability)
D12: Electrostatic disinfectant sprayers | E12: 1 | F12: sprayer(s) per cleaner (goal)
E13: 0.5 | F13: sprayer(s) per cleaner (current availability)
D14: Mops, buckets and brushes | E14: 1 | F14: set(s) per classroom/restroom/office (goal)
E15: 0.5 | F15: set(s) per classroom/restroom/office (current availability)
D16: Soap bars | E16: 1 | F16: soap bar(s) per classroom/restroom/office
D17: Water | E17: =MAX(IF(Calculators!I90 = 0, Calculators!I90, Calculators!I89/(Calculators!I90/5)), IF(Calculators!I155 = 0, Calculators!I154, Calculators!I154/Calculators!I155)) - 1 -> 4 | F17: time(s) more than the water usage in the pre-COVID-19 era | G17: The increase in water usage is mainly caused by higher frequency of cleaning and higher frequency of handwashing . For example, if cleaning was conducted weekly in the pre-COVID-19 era but daily during the COVID-19 era, 4 times more water would be needed (i.e., 1 / (1/5) - 1). If students were required to wash their hands twice a day in the pre-COVID-19 era but five times now, 1.5 times more water would be needed (i.e., 5/2 - 1). The default value is the larger number of these two ratios.
D18: Rubber gloves for cleaning staff | E18: 2 | F18: pair(s) per cleaner (goal)
E19: 1 | F19: pair(s) per cleaner (current availability)
D20: Disposable gowns for cleaning staff | E20: 1 | F20: set(s) per cleaner per day
D21: Reusable gowns and caps for cleaning staff | E21: 2 | F21: set(s) per cleaner (goal) | G21: One pair for classes and one pair for restroom per cleaner.
E22: 1 | F22: set(s) per cleaner (current availability)
D23: Newly hired cleaning staff | E23: =N_newly_hired_cleaner -> 0 | F23: FTE(s)
D24: Overtime payment for cleaning staff | E24: 0 | F24: hour(s) per cleaner per day
C25: Provide personal protective equipment | D25: Reusable masks | G25: See Calculator 4.1 for details | J25: P102
D26: Disposable masks | G26: See Calculator 4.2 for details
D27: Face shields | E27: 1 | F27: face shield(s) per teacher or school staff
C28: Provide hand hygiene materials | D28: Alcohol-based antiseptic (at least 60 percent alcohol) | G28: See Calculator 3.1 for details | J28: 103
D29: Antiseptic dispensers | E29: 2 | F29: dispenser(s) per classroom/restroom/office (goal)
E30: 1 | F30: dispenser(s) per classroom/restroom/office (current availability)
D31: Liquid soap | G31: See Calculator 3.3 for details
D32: Paper towels | E32: 2 | F32: roll(s) per person (including students, teachers and school staff) per month (i.e., 20 school days) (goal)
E33: 1 | F33: roll(s) per person (including students, teachers and school staff) per month (i.e., 20 school days) (current availability)
D34: EPA-registered disposable wipes | E34: 2 | F34: package(s) per person per month (i.e., 20 school days) (goal)
E35: 1 | F35: package(s) per person per month (i.e., 20 school days) (current availability)
D36: No-touch/foot-pedal trash cans | E36: 2 | F36: trash can(s) per classroom/restroom/office (goal)
E37: 1 | F37: trash can(s) per classroom/restroom/office (current availability)
D38: Hand dryer | E38: 1 | F38: hand dryer(s) per restroom (goal)
E39: 1 | F39: hand dryer(s) per restroom (current availability)
C40: Provide on-site health screenings | D40: Automatic temperature sensors | G40: See Calculator 5 for details | J40: P104
D41: Oximeters | G41: See Calculator 5 for details
D42: Overtime payment for screening staff who are sufficiently trained in screening procedures | E42: 1 | F42: hour(s) per screener per day | G42: See Calculator 5 for the number of screeners needed in a school
D43: Protective masks and disposable gloves for screening staff | E43: 1 | F43: sets per screener per day
D44: Newly hired full-time nurses | E44: =N_newly_hired_nurse -> 2 | F44: FTE(s)
D45: Overtime payment for full-time nurses | E45: 1 | F45: hour(s) per nurse per day
D46: Emergency room/health clinic/isolation rooms | E46: 2 | F46: room(s) per school
C47: Monitor symptoms through parent-reported surveys | D47: Overtime payment for technicians to i) set up the online health monitoring and reporting platform and ii) prepare and disseminate daily reporting | E47: 0 | F47: hour(s) per technician per day | J47: P105
C48: Limit sharing objects | D48: Teaching or learning materials that need to be purchased to limit sharing | E48: 100 | F48: set(s) | G48: Please specify what teaching or learning materials need to be purchased. Add more rows at the end of the table if needed. | J48: P106
C49: Ensure spaces, materials, and strategies to maintain physical and social distancing | D49: Rental cost of community unused spaces | E49: 0 | F49: square meters per school per day | G49: Rules of thumb to determine the area of space needed: 1) Maintain a distance of at least 1 square meters between everyone present at school. 2) Cohorting denotes having the same small group of students (10 or fewer) stay with the same staff as much as possible. | J49: P107
C50: Establish physical barriers and guides | D50: Physical barriers in the classrooms | E50: 1 | F50: plastic flexible screen per student | J50: P108
E51: 0.8 | F51: of all reopened schools choose to install the physical barriers
D52: Physical barriers between restroom sinks | E52: 5 | F52: sink(s) per restroom
E53: 0.8 | F53: of all reopened schools choose to install the physical barriers
D54: Tapes to mark signs on floors or sidewalks | E54: 10 | F54: tape roll(s) per school
D55: Posters or signs on walls | E55: 10 | F55: poster(s) per school
C56: Train students, teachers, staff, and parents on safe school operations | D56: Overtime payment for teachers and staff to participate in the training on safe operations | E56: 1 | F56: hour(s) per teacher or staff member | J56: P109
C57: Maintain appropriate collaboration and coordination with local public health authorities. | D57: Gowns or white scrubs for school nurses | E57: 2 | F57: gown(s) or white scrub(s) per nurse (goal) | J57: P110
E58: 1 | F58: gown(s) or white scrub(s) per nurse (current availability)
D59: PPE needed to address suspected cases | E59: 1 | F59: set of disposable grown, gloves, and mask per suspected case
E60: 2 | F60: suspected cases per school per day
C61: Adapt transportation | D61: Fog machines for buses | E61: 1 | F61: fog machine per bus driver (goal) | J61: P111
E62: 0.5 | F62: fog machine per bus driver (current availability)
D63: Disinfectant for buses | G63: See Calculator 2.2
D64: Automatic temperature sensors to screen student temperature before boarding | E64: 1 | F64: temperature sensor(s) per bus driver
D65: Alcohol-based antiseptic (at least 70 percent alcohol) | G65: See Calculator 3.2
D66: Antiseptic dispensers | E66: 2 | F66: dispenser(s) per bus driver (goal)
E67: 1 | F67: dispenser(s) per bus driver (current availability)
D68: Additional fuel | E68: 0.5 | F68: of typical capacity to adhere to physical distancing guidelines | G68: ="Since school buses is runing at "&ROUND(pct_bus_capacity, 2)*100&"% of the full capacity, the amount of fuel needed is "&ROUND(1/pct_bus_capacity,1)&" times of the amount needed before, or ("&ROUND(1/pct_bus_capacity,1)& -1&") times more than the fuel cost in the Pre-COVID-19 era to transport the same number of students." -> Since school buses is runing at 50% of the full capacity, the amount of fuel needed is 2 times of the amount needed before, or (2-1) times more than the fuel cost in the Pre-COVID-19 era to transport the same number of students.
C69: Adapt ventilation | D69: Updating HVAC systems | E69: 0.1 | F69: of reopened schools need to update the HVAC systems | G69: If fans are used instead of HVAC, unlock the spreadsheet and replace HVAC with fans. | J69: P112
C70: Reorganize lunch programs | D70: Gowns, aprons and caps for food service workers | E70: 1 | F70: set(s) per food service worker (goal) | J70: P113
E71: 1 | F71: set(s) per food service worker (current availability)
D72: Disposable utensils | E72: 1 | F72: set(s) per student for whose who have lunch at school (goal) | G72: If a school has been providing disposable utensils, it does not seem that more disposable utensils are needed because of the COVID-19 response. There might be some savings from previous school closure.
E73: 1 | F73: set(s) per student for whose who have lunch at school (current availability)
D74: Disposable dishes | E74: 1 | F74: disposable dish(es) per student for whose who have lunch at school (goal) | G74: If a school has been providing disposable dishes, it does not seem that more disposable dishes are needed because of the COVID-19 response. There might be some savings from previous school closure.
E75: 1 | F75: disposable dish(es) per student for whose who have lunch at school (current availability)
C76: Pillar 2: Actions to recover learning
C77: Provide teacher professional development | D77: Overtime payment for teachers to participate in the training sessions on pedagogy | E77: 2 | F77: session(s) per teacher for those who participate in the training sessions on pedagogy | J77: P201
E78: 1 | F78: hour(s) per session
E79: 1 | F79: of all teachers participate in the training sessions on pedagogy
D80: Compensation for external trainers to provide the training sessions | E80: 50 | F80: external trainer(s)
E81: 20 | F81: session(s) per trainer
E82: 1 | F82: hour(s) per session
D83: Materials for teacher professional training | E83: 1 | F83: set(s) per teacher
C84: Continue flexible or partial remote learning approaches | D84: Remote learning platforms | G84: See Calculator 6 for details | J84: P202
D85: Compensation for internet access | E85: 0.4 | F85: of all teachers receive compensation for internet access
E86: 0.5 | F86: of all students receive compensation for internet access
D87: Compensation for cell phone data plans | E87: 0.4 | F87: of all teachers receive compensation for cell phone data plans
E88: 0.5 | F88: of all students receive compensation for cell phone data plans
D89: Desktop computers | E89: 100 | F89: desktop(s)
D90: Laptops | E90: 200 | F90: laptop(s)
D91: Tablets | E91: 200 | F91: tablet(s)
D92: Phones | E92: 200 | F92: phone(s)
D93: Newly hired technicians | E93: =N_newly_hired_technician -> 1 | F93: FTE(s)
D94: Overtime payment for technicians or other staff to provide technical assistance | E94: 1 | F94: hour(s) per technician per day
C95: Conduct diagnosis assessments | D95: License fee of the assessments | E95: 1 | F95: license(s) | G95: Specify how the license fee is charged, e.g., by school or by student? | J95: P203
D96: Printing of the assessments (if delivered on paper) | E96: 2 | F96: page(s) to print for each tested student
D97: Compensation for external assessment specialists to develop the assessments and provide training | E97: 10 | F97: external assessment specialist(s)
E98: 10 | F98: hour(s) per assessment specialist
C99: Increase intensity and differentiation (personalized learning) | D99: License fees for the remedial or accelerated programs | E99: 1 | F99: license(s) | G99: Specify how the license fee is charged. | J99: P204
D100: Payment for teaching aids to provide personalized learning in the format of tutoring
C101: Extend schedules | D101: Overtime payment for teachers to provide instructions | E101: 8 | F101: hour(s) per day for those extended days | J101: P205
E102: 30 | F102: extended day(s)
C103: Hire new teachers, reorganize the working shifts or extend the working hours of teachers | D103: Additional teachers hired to ensure smaller class size and substitute sick colleagues | E103: =N_newly_hired_teacher -> 5 | F103: FTE(s) | J103: P206
D104: Overtime payment for current teachers to substitute sick colleagues
C105: Pillar 3: Actions to support emotional wellbeing and recovery
C106: Provide dedicated psychosocial support and counselling | D106: Newly hired counselors | E106: =N_newly_hired_counselor -> 1 | F106: FTE(s) | J106: P301
D107: Overtime payment for counselors | E107: 0 | F107: hour(s) per counselor per day
D108: Newly hired social workers | E108: =N_newly_hired_social_worker -> 1 | F108: FTE(s)
D109: Overtime payment for social workers | E109: 0 | F109: hour(s) per social worker per day
D110: Newly hired psychologists | E110: =N_newly_hired_psychologist -> 1 | F110: FTE(s)
D111: Overtime payment for psychologists | E111: 0 | F111: hour(s) per psychologist per day
C112: Adopt social and emotional learning (SEL) programs | D112: Overtime payment for teachers to participate in the training sessions on SEL | E112: 1 | F112: session(s) per teacher for those who participate in the training sessions on SEL | J112: P302
E113: 1 | F113: hour(s) per training session
E114: 0.2 | F114: of all teachers in school participate in the training sessions on SEL
D115: Overtime payment for teachers to promote SEL | E115: 1 | F115: hour(s) per teacher per day for those who work overtime to promote SEL
E116: 0.2 | F116: of all teachers in school work overtime to promote SEL
D117: License fees for SEL programs adopted | E117: 4 | F117: license(s) | G117: Specify how the license fee is charged, e.g., by school or by student. If a SEL program is developed for the COVID-19 response, please specify the development cost.
C118: Pillar 4: Actions to reach the most marginalized
C119: Provide adequate supports for recovery needs, especially for disadvantaged and vulnerable students | D119: Special or adapted protective equipment | E119: 10 | F119: set(s) per school | G119: Please specify based on the context. For clear facial masks, please see Calculator 3.2 | J119: P401
C120: Conduct reenrollment campaigns and wraparound supports to prevent dropouts | D120: Staff time to design and implement the enrollment campaigns | E120: 20 | F120: hour(s) per social mobilizer | J120: P402
D121: Transportation cost for the campaigns | E121: 120 | F121: trip(s)
D122: Feeding programs | E122: 100 | F122: beneficiary/beneficiaries
D123: Provision of school uniforms | E123: 100 | F123: set(s) of uniform
D124: Removing or waiving school fees | E124: 100 | F124: fee waiver(s)
D125: <Please specify based on the support provided>
C126: Monitor and plan for absenteeism | D126: Overtime payment for staff to monitor and plan for absenteeism (if applicable) | E126: 2 | F126: staff members per school for absenteeism monitoring | J126: P403
E127: 1 | F127: hour(s) per day
C130: Word count
C131: =SUM(IF(LEN(TRIM(B1:H128))=0,0,LEN(TRIM(B1:H128))-LEN(SUBSTITUTE(B1:H128," ",""))+1)) -> 1759

Sheet Calculators
M5: <Fill out the input cells>
C7: Calculators
C9: Table of Contents
D11: =C19 -> Calculator 1. How to estimate the number of new teachers and staff needed
D12: =C70 -> Calculator 2. How to calculate the quantity of disinfectant needed
D13: =C127 -> Calculator 3. How to calculate the quantity of antiseptic and liquid soap for handwashing
D14: =C166 -> Calculator 4. How to calculate the number of masks
D15: =C196 -> Calculator 5. How to calculate the number of automatic temperature sensors, oximeters and screening staff
D16: =C211 -> Calculator 6: How to estimate the cost of developing a remote learning platform
C19: Calculator 1. How to estimate the number of new teachers and staff needed
D20: <Note that the populated numbers only represent the demand of new teachers and staff. The actual numbers that can be newly hired are determined by both the demand and the supply of new teachers and staff. When finalizing these estimates, please take into consideration the feasibility of hiring new teachers and staff in a large scale within a short period of time in your context.>
D22: 1.1. Teachers | E22: a) Ensure smaller class size to maintain social distancing | T22: P206
F23: Current class size | K23: =N_student_per_class -> 20 | L23: students/class
F24: Targeted cohort size | K24: 10 | L24: students/cohort | N24: <Cohorting denotes having the same small group of students (10 or fewer) stay with the same staff as much as possible. >
F25: Number of new teachers to hire for this purpose | K25: =IF(ISERROR((K23/K24 - 1) * N_teacher_current), "", (K23/K24 - 1) * N_teacher_current) -> 100 | L25: teachers
E27: b) Substitute for teachers who are on sick leave because of COVID-19 infection or conditions that exhibit similar symptoms
F28: ="% of current teachers who may take sick leave during "&LOWER('Basic information about schools'!D43)&"" -> % of current teachers who may take sick leave during the fall sesmeter of 2021 | M28: 0.05
F29: The average days of sick leave | M29: 20 | N29: day(s)
F30: Number of hours per working day | M30: 8 | N30: hour(s)
F31: Total number of hours that need to be substituted | M31: =M28*N_teacher_current*M29*M30 -> 800 | N31: hour(s)
F32: % of these hours that can be covered by current teachers | M32: 0.1
F33: Number of new teachers to hire for this purpose | M33: =N_hour_substitute*(1-M32)/(8*N_school_days) -> 1 | N33: teacher(s)
E35: Total number of teachers needed to ensure smaller class size and substitute for sick teachers | M35: =K25+M33 -> 101 | N35: teacher(s)
D37: 1.2. Teaching aids to provide personalized learning in the format of tutoring | T37: P204
E39: The number of hours of tutoring a student needs to attend per day | L39: 1 | M39: hour(s) per day
E40: Format of tutoring | K40: One aid for | L40: 1.5 | M40: student(s)
E41: The total number of working hours for teaching aids | L41: =IF(personalized_learning = "Reopened schools", pct_student_personalized_learning * N_student * pct_student_in_school * N_hour_tutoring_per_student_per_day * (1/student_aid_ratio), pct_student_personalized_learning * N_student * N_hour_tutoring_per_student_per_day * (1/student_aid_ratio)) -> 204.4444444 | M41: hour(s)
E42: Number of working hours per day | L42: 8 | M42: hour(s) per day
E43: Number of teaching aids needed in total | L43: =L41/L42 -> 25.55555556 | M43: teaching aid(s)
E44: Number of new teaching aids to hire | L44: =IF((L43-'Basic information about schools'!I64)>0, L43-'Basic information about schools'!I64, "Sufficient number of") -> 10.55555556 | M44: teaching aid(s)
D46: 1.3. Non-teaching staff
D48: Rules of thumb to determine the quantity | L48: <Leave the cell blank if there is no min requirement> | P48: <Leave the cell blank if there is no max requirement>
C50: Cleaning staff | E50: Serving | F50: 1 | G50: school(s), | H50: 1 | I50: cleaner(s) per | J50: 150 | K50: students, | L50: with a min of | M50: 1 | N50: =IF(F50>1, "per "&F50&" schools and a max of", "per school and a max of") -> per school and a max of | Q50: 10 | R50: =IF(F50>1, "per "&F50&" schools", "per school") -> per school
C51: School nurses | E51: Serving | F51: 1 | G51: school(s), | H51: 1 | I51: nurse(s) per | J51: 150 | K51: students, | L51: with a min of | M51: 1 | N51: =IF(F51>1, "per "&F51&" schools and a max of", "per school and a max of") -> per school and a max of | Q51: 10 | R51: =IF(F51>1, "per "&F51&" schools", "per school") -> per school
C52: Technicians | E52: Serving | F52: 1 | G52: school(s), | H52: 1 | I52: technician(s) per | J52: 150 | K52: students, | L52: with a min of | M52: 1 | N52: =IF(F52>1, "per "&F52&" schools and a max of", "per school and a max of") -> per school and a max of | Q52: 10 | R52: per school
C53: Counselors | E53: Serving | F53: 2 | G53: school(s), | H53: 1 | I53: counselor(s) per | J53: 250 | K53: students, | L53: with a min of | N53: =IF(F53>1, "per "&F53&" schools and a max of", "per school and a max of") -> per 2 schools and a max of | R53: per 2 schools
C54: Psychologists | E54: Serving | F54: 2 | G54: school(s), | H54: 1 | I54: psychologist(s) per | J54: 250 | K54: students, | L54: with a min of | N54: =IF(F54>1, "per "&F54&" schools and a max of", "per school and a max of") -> per 2 schools and a max of | R54: per 2 schools
C55: Social workers | E55: Serving | F55: 5 | G55: school(s), | H55: 1 | I55: social worker(s) per | J55: 250 | K55: students, | L55: with a min of | N55: per 5 schools and a max of | R55: per 5 schools
C56: Social mobilizers | E56: Serving | F56: 5 | G56: school(s), | H56: 1 | I56: social mobilizer(s) per | J56: 500 | K56: students, | L56: with a min of | N56: per 5 schools and a max of | R56: per 5 schools
D58: Number of students in a school | I58: =N_student_per_school -> 200 | J58: <The default setting is the average number of students in a school.>
E60: Needed per school | G60: Currently available per school | J60: New staff to hire per school
C61: Cleaning staff | E61: =IF(AND(Q50 <>"", I$58*F50/J50*H50>Q50), Q50, IF(AND(M50 <>"", I$58*F50/J50*H50 <M50), M50, ROUNDUP(I$58*F50/J50*H50,0)))/F50 -> 2 | G61: =N_cleaner_current/N_school -> 2 | J61: =IF(E61-G61 >0, E61-G61, "The number of staff is sufficient") -> The number of staff is sufficient
C62: School nurses | E62: 2 | G62: =N_nurse_current/N_school -> 1 | J62: =IF(E62-G62 >0, E62-G62, "The number of staff is sufficient") -> 1
C63: Technicians | E63: 2 | G63: =N_technician_current / N_school -> 1 | J63: 1
C64: Counselors | E64: 1 | G64: =N_counselor_current/N_school -> 0.5 | J64: 0.5
C65: Psychologists | E65: 1 | G65: =N_psychologist_current/N_school -> 0.5 | J65: 0.5
C66: Social workers | E66: 0.8 | G66: =N_social_worker_current/N_school -> 0.5 | J66: 0.3
C67: Social mobilizers | E67: 0.4 | G67: =N_social_worker_current/N_school -> 0.5 | J67: The number of staff is sufficient
C70: Calculator 2. How to calculate the quantity of disinfectant needed
D71: <For disinfection, the WHO recommends using sodium hypochlorite (bleach or chlorine) at a concentration of 0.1 percent or 1,000ppm (1 part of 5% strength household bleach to 49 parts of water) or solutions containing 70 to 90 percent alcohol.>
D72: 2.1. For a typical school
D73: Factor 1: Area to be disinfected using spray | I73: =I79*N_room_per_school -> 450 | J73: square meter(s) | L73: <This is a conservative estimate as we assume that once a school reopens, all the facilities need to be disinfected, regardless how many students come to school.>
D75: Area of a typical classroom
D76: Length of the floor for a typical classroom | I76: 4 | J76: meter(s)
D77: Width of the floor for a typical classroom | I77: 3 | J77: meter(s)
D78: Area of the floor for a typical classroom | I78: =I76*I77 -> 12 | J78: square meter(s) | L78: <Length * width>
D79: Area of the room (including all walls, floor and ceiling) | I79: =2.5*I78 -> 30 | J79: square meter(s) | L79: <The rule of thumb is 2.5 times of the area of the floor>
D81: The total number of rooms (including classrooms, bathrooms and offices) to disinfect in a typical school | I81: =('Basic information about schools'!G53/'Basic information about schools'!G52*(1+1/'Basic information about schools'!G96+1/'Basic information about schools'!G97)) -> 15 | J81: Room(s) | L81: <Average number of classrooms per school * (1 + 1/classroom-bathroom ratio + 1/classroom-office ratio)>
D84: Factor 2: Quantity of mixed solution required | I84: 0.05 | J84: liter(s) per square meter | L84: <See the product label>
D86: Factor 3: Dilution rate | I86: 0.05 | L86: <See the product label. The rate is the amount of the concentrated disinfectant divided by the amount of water needed.>
D88: Factor 4: Frequency of disinfection
D89: In the COVID-19 era | I89: 1 | J89: time(s) per day | L89: <School facilities are recommended to be cleaned and disinfected at least daily.>
D90: In the pre-COVID-19 era | I90: 1 | J90: time(s) per week
D92: The quantity of disinfectant needed to spray a typical school per day
D93: In the COVID-19 era | I93: =I73*I84*I86*I89 -> 1.125 | J93: liter(s) | L93: <Factor 1 * Factor 2 * Factor 3 * Factor 4 for the COVID-19 era>
D94: In the pre-COVID-19 era | I94: =I73*I84*I86*I90/5 -> 0.225 | J94: liter(s) | L94: <Factor 1 * Factor 2 * Factor 3 * Factor 4 for the pre-COVID-19 era>
D95: Gap | I95: =I93-I94 -> 0.9 | J95: liter(s)
D98: 2.2. For a school bus
D99: Factor 1: Areas to be disinfected using spray | I99: =I103 -> 60.996 | J99: square meter
E100: Length of the bus | I100: 8 | J100: meter | L100: <Mini School Bus: 6.1-7.6 meters; Mid-Sized School Bus: 7.6-10.7 meters; Full-sized school buses: 10.7+ meters>
E101: Width of the bus | I101: 2.55 | J101: meter
E102: Height of the bus | I102: 2.99 | J102: meter
E103: Area of the bus (including all walls, floor, ceiling and seats) | I103: =I100*I101*I102 -> 60.996 | J103: square meter | L103: <Length * width * height>
D105: Factor 2: Quantity of mixed solution required | I105: 0.05 | J105: Liter per square meter | L105: <See the product label>
D107: Factor 3: Dilution rate | I107: 0.05 | L107: <See the product label. The rate is the amount of the concentrated disinfectant divided by the amount of the water>
D109: Factor 4: Frequency of disinfection
D110: In the COVID-19 era | I110: =1 -> 1 | J110: time per trip
D111: In the pre-COVID-19 era | I111: 1 | J111: time per week (e.g., 2 trips a day, 5 days per week)
D113: The quantity of disinfectant needed to spray a bus per trip
D114: In the COVID-19 era | I114: =I99*I105*I107*I110 -> 0.15249 | J114: liter(s) | L114: <Factor 1 * Factor 2 * Factor 3 * Factor 4 for the COVID-19 era>
D115: In the pre-COVID-19 era | I115: =I99*I105*I107*I111/10 -> 0.015249 | J115: liter(s) | L115: <Factor 1 * Factor 2 * Factor 3 * Factor 4 for the pre-COVID-19 era>
D116: Gap | I116: =Disinfectant_bus_per_trip-I115 -> 0.137241 | J116: liter(s)
C118: Notes. | D118: If you are not sure about certain numbers, try to overestimate them.
C119: Sources. | D119: Addressing disease mitigation in schools, day cares & universities with sanitizers and disinfectants | L119: https://www.youtube.com/watch?v=xhS-AhciAfM&feature=youtu.be
D120: Guidance for cleaning and disinfecting: Public spaces, workplaces, businesses, schools and homes | L120: https://www.cdc.gov/coronavirus/2019-ncov/community/pdf/reopening_america_guidance.pdf
D121: Cleaning and disinfection for community facilities | L121: https://www.cdc.gov/coronavirus/2019-ncov/community/organizations/cleaning-disinfection.html
D122: Calculations and application of disinfection | L122: http://www.fao.org/3/al877e/al877e00.pdf
D123: Disinfecting cost calculator | L123: https://blog.midwestind.com/disinfecting-cost-calculator/
D124: What is the average size of a school bus? | L124: https://www.trackschoolbus.com/blog/what-is-the-average-size-of-a-school-bus/#:~:text=The%20length%20of%20a%20normal,a%20width%20of%206%20feet.
C127: Calculator 3. How to calculate the quantity of antiseptic and liquid soap for handwashing
D129: 3.1. Antiseptic for handwashing in school
E130: Factor 1: Amount of antiseptic per handwash | I130: 3 | J130: mL | K130: <2-3 mL is recommended>
E131: Factor 2: Frequency of using antiseptic
E132: In the COVID-19 era | I132: 5 | J132: times per day per person
E133: In the pre-COVID-19 era | I133: 2 | J133: times per day per person
E135: The quantity of antiseptic needed per person per day
E136: In the COVID-19 era | I136: =I130*I132 -> 15 | J136: mL
E137: In the pre-COVID-19 era | I137: =I130*I133 -> 6 | J137: mL
E138: Gap | I138: =Antiseptic_per_person_per_day-I137 -> 9 | J138: mL
D140: 3.2. Antiseptic for handwashing before boarding school buses
E141: Factor 1: Amount of antiseptic per handwash | I141: 3 | J141: mL | K141: <2-3 mL is recommended>
E142: Factor 2: Frequency of using antiseptic
E143: In the COVID-19 era | I143: 2 | J143: times per day per person
E144: In the pre-COVID-19 era | I144: 0 | J144: times per day per person
E146: The quantity of antiseptic needed per person per day
E147: In the COVID-19 era | I147: =I141*I143 -> 6 | J147: mL | K147: <Factor 1 * Factor 2 for the COVID-19 era>
E148: In the pre-COVID-19 era | I148: =I141*I144 -> 0 | J148: mL | K148: <Factor 1 * Factor 2 for the pre-COVID-19 era>
E149: Gap | I149: =Antiseptic_per_person_per_day_bus-I148 -> 6 | J149: mL
D151: 3.3. Liquid soap for handwashing in school
E152: Factor 1: Amount of liquid soap per handwash | I152: 3 | J152: mL | K152: <A reasonable range is 1-3 mL>
E153: Factor 2: Frequency of handwashing
E154: In the COVID-19 era | I154: 5 | J154: times per day per person
E155: In the pre-COVID-19 era | I155: 2 | J155: times per day per person
E157: The quantity of liquid soap needed per person per day
E158: In the COVID-19 era | I158: =I152*I154 -> 15 | J158: mL | K158: <Factor 1 * Factor 2 for the COVID-19 era>
E159: In the pre-COVID-19 era | I159: =I152*I155 -> 6 | J159: mL | K159: <Factor 1 * Factor 2 for the pre-COVID-19 era>
E160: Gap | I160: =Liquid_soap_per_person_per_day-I159 -> 9 | J160: mL
C162: Sources. | D162: Quantity of soap as a variable in handwashing | L162: https://pubmed.ncbi.nlm.nih.gov/3654132/
D163: Hand coverage by alcohol-based handrub varies: Volume and hand size matter | L163: https://www.ajicjournal.org/article/S0196-6553(16)30690-3/abstract
C166: Calculator 4. How to calculate the number of masks
C168: Advice on the use of masks for children in the community in the context of COVID-19
C169: 1) Children under five years should not be required to wear masks. 2) For children between the ages of 6 to 11, the use of mask should be based on: • Whether there is widespread transmission in the area • Ability of the child to safely and appropriately use a mask • Access to clean and replacement masks • Adequate adult supervision • Potential impact on learning and psychosocial development • Specific settings and interactions with persons at higher risk 3) Children 12 years and older should wear a mask under the same conditions as adults 4) Teacher and support staff should wear masks when they cannot guarantee at least a 1-meter distance from others or if there is widespread transmission in the area.
D171: 4.1. Reusable masks
D173: Mask type | E173: Eligible population | H173: # of people | J173: % present in school | L173: # of masks per person | N173: # of masks in total | P173: Price | R173: Cost
D174: Small masks | E174: Children aged 3-5 years old | J174: =pct_student_in_school -> 0.7666666667 | N174: =H174*J174*L174 -> 0 | R174: =N174*P174 -> 0
D175: Medium masks | E175: Children aged 6-11 years old | J175: =pct_student_in_school -> 0.7666666667 | N175: =H175*J175*L175 -> 0 | R175: =N175*P175 -> 0
D176: Large masks | E176: Students aged 12 years old and above | J176: =pct_student_in_school -> 0.7666666667 | N176: 0 | R176: 0
D177: Large masks | E177: Teachers and staff | H177: =N_teacher_and_staff -> 256 | J177: =pct_teacher_staff_in_school -> 0.7166666667 | L177: 1 | N177: 183.4666667 | P177: 0.5 | R177: =N177*P177 -> 91.73333333
D178: Clear masks | E178: Teachers and staff who regularly interact with students who are deaf or hard of hearing, students learning to read, students with disabilities, and those who rely on lip reading as a part of learning | J178: =pct_teacher_staff_in_school -> 0.7166666667 | N178: 0
D180: Total | N180: =SUM(N174:N177) -> 183.4666667 | P180: =(N174*P174+N175*P175+N176*P176+N177*P177+N178*P178)/SUM(N174:N178) -> 0.5 | R180: =SUM(R174:R177) -> 91.73333333
D183: 4.2. Disposable masks
D185: Mask type | E185: Eligible population | H185: # of people | J185: % present in school | L185: # of masks/person/day | N185: # of masks in total | P185: Price | R185: Cost
D186: Small masks | E186: Children aged 3-5 years old | J186: =pct_student_in_school -> 0.7666666667 | N186: =H186*J186*L186* N_school_days -> 0 | R186: =N186*P186 -> 0
D187: Medium masks | E187: Children aged 6-11 years old | J187: =pct_student_in_school -> 0.7666666667 | N187: =H187*J187*L187* N_school_days -> 0 | R187: =N187*P187 -> 0
D188: Large masks | E188: Students aged 12 years old and above | J188: =pct_student_in_school -> 0.7666666667 | N188: =H188*J188*L188* N_school_days -> 0 | R188: 0
D189: Large masks | E189: Teachers and staff | H189: =N_teacher_and_staff * pct_teacher_staff_in_school -> 183.4666667 | J189: =pct_teacher_staff_in_school -> 0.7166666667 | L189: 1 | N189: =H189*J189*L189* N_school_days -> 11833.6 | R189: =N189*P189 -> 0
D191: Total | N191: =SUM(N186:N189) -> 11833.6 | P191: =(N186*P186+N187*P187+N188*P188+N189*P189)/SUM(N186:N189) -> 0 | R191: =SUM(R186:R189) -> 0
C193: Sources. | D193: Advice on the use of masks for children in the community in the context of COVID-19 | L193: https://www.who.int/publications/i/item/WHO-2019-nCoV-IPC_Masks-Children-2020.1
C196: Calculator 5. How to calculate the number of automatic temperature sensors, oximeters and screening staff
D198: Rules of thumb to determine the quantity | L198: <Leave the cell blank if there is no min requirement> | P198: <Leave the cell blank if there is no max requirement>
D199: Automatic temperature sensors | G199: 1 | H199: piece(s) per | I199: 150 | J199: students, | K199: with a min of | L199: 2 | M199: per school and a max of | P199: 10 | Q199: per school
D200: Oximeters | G200: 1 | H200: piece(s) per | I200: 150 | J200: students, | K200: with a min of | L200: 2 | M200: per school and a max of | P200: 10 | Q200: per school
D201: Screening staff | G201: 1 | H201: screener(s) per | I201: 150 | J201: students, | K201: with a min of | M201: per school and a max of | Q201: per school
D203: Number of students in a school | I203: ='Basic information about schools'!G55 -> 200 | J203: <The default setting is the average number of students in a school.>
D204: Number of automatic temperature sensors needed in a school | I204: =IF(AND(P199 <>"", I$203/I199*G199>P199), P199, IF(AND(L199 <>"", I$203/I199*G199 <L199), L199, ROUNDUP(I$203/I199*G199,0))) -> 2
D205: Number of oximeters needed in a school | I205: =IF(AND(P200 <>"", I$203/I200*G200>P200), P200, IF(AND(L200 <>"", I$203/I200*G200 <L200), L200, ROUNDUP(I$203/I200*G200,0))) -> 2
D206: Number of screening staff needed in a school | I206: =IF(AND(P201 <>"", I$203/I201*G201>P201), P201, IF(AND(L201 <>"", I$203/I201*G201 <L201), L201, ROUNDUP(I$203/I201*G201,0))) -> 2
C208: Notes. The default setting for the rules of thumb to determine the quantity of automatic temperature sensors and oximeters is based on the school reopening strategy published by the Ministry of Education in Chile (https://sigamosaprendiendo.mineduc.cl/documentos/).
C211: Calculator 6: How to estimate the cost of developing a remote learning platform
E213: Who are involved in the phase? | H213: Roles and responsibilities | J213: # of people in the category | L213: # of working days devoted to this task | N213: Average daily rate | P213: Total cost
C214: Personnel
C215: Content development | P215: =J215*L215*N215 -> 0
P216: =J216*L216*N216 -> 0
P217: 0
C218: Platform development | P218: 0
P219: 0
P220: 0
C221: Maintenance of the platform | P221: 0
P222: 0
P223: 0
C225: Hardware
C226: Data storage
C227: Other
C229: Total | P229: =SUM(P215:P223) -> 0
C234: Word count
C235: =SUM(IF(LEN(TRIM(B1:S231))=0,0,LEN(TRIM(B1:S231))-LEN(SUBSTITUTE(B1:S231," ",""))+1)) -> 2127

Sheet Prices of additional resources
G6: <Fill out the price for each resource> | J6: <If you are interested in knowing the economic cost, please fill out Columns J and K>
C7: Checked measures | D7: Additional resources | E7: Quantity | F7: Unit | G7: ="Price "&IF('Basic information about schools'!G99="","","(in "&'Basic information about schools'!G99&")"&"") -> Price (in MRupee) | H7: ="Total additional cost" -> Total additional cost | J7: ="Can this resource be used beyond "&LOWER('Basic information about schools'!D43)&"? (Yes/No)" -> Can this resource be used beyond the fall sesmeter of 2021? (Yes/No) | K7: If yes, what is the expected lifetime of this resource? (In months) | L7: Economic cost
C8: Pillar 1: Measures related to safe operations
C9: Establish cleaning and disinfecting measures | D9: Disinfectant | E9: =Disinfectant_per_school_per_day_gap * (N_school * pct_school_reopen) * N_school_days -> 580.5 | F9: liter(s) | G9: 1 | H9: =E9*G9 -> 580.5 | L9: =IF(J9 = "Yes", H9/K9 * (N_school_days/20), H9) -> 580.5 | N9: P101
D10: Empty containers for diluting cleaning and disinfection products | E10: =N_container_per_cleaner * N_newly_hired_cleaner + (N_container_per_cleaner - N_container_per_cleaner_current) * N_cleaner_current * pct_teacher_staff_in_school -> 7.166666667 | F10: piece(s) | G10: 100 | H10: =E10*G10 -> 716.6666667 | J10: Yes | K10: 24 | L10: 134.375
D11: Electrostatic disinfectant sprayers | E11: =N_sprayer_per_cleaner * N_newly_hired_cleaner + (N_sprayer_per_cleaner - N_sprayer_per_cleaner_current) * N_cleaner_current * pct_teacher_staff_in_school -> 7.166666667 | F11: piece(s) | G11: 100 | H11: 716.6666667 | J11: Yes | K11: 36 | L11: 89.58333333
D12: Mops, buckets and brushes | E12: =(N_mop_per_room - N_mop_per_room_current) * N_school * pct_school_reopen * N_room_per_school -> 53.75 | F12: set(s) | G12: 100 | H12: 5375 | J12: Yes | K12: 12 | L12: 2015.625
D13: Soap bars | E13: =N_soap_bar_per_room * N_room_per_school * N_school * pct_school_reopen -> 107.5 | F13: piece(s) | G13: 100 | H13: 10750 | L13: 10750
D14: Water | E14: =Water_multiplier * N_school * pct_school_reopen -> 28.66666667 | F14: time(s) * school(s) | G14: 1 | H14: 28.66666667 | L14: 28.66666667
D15: Rubber gloves for cleaning staff | E15: =N_glove_per_cleaner * N_newly_hired_cleaner + (N_glove_per_cleaner - N_glove_per_cleaner_current) * N_cleaner_current * pct_teacher_staff_in_school -> 14.33333333 | F15: pair(s) | G15: 100 | H15: 1433.333333 | J15: Yes | K15: 12 | L15: 537.5
D16: Disposable gowns for cleaning staff | E16: =N_disposable_gown_per_cleaner_per_day * N_cleaner * pct_teacher_staff_in_school * N_school_days -> 1290 | F16: set(s) | G16: 100 | H16: 129000 | L16: 129000
D17: Reusable gowns and caps for cleaning staff | E17: =N_reusable_gown_per_cleaner * N_newly_hired_cleaner + (N_reusable_gown_per_cleaner - N_reusable_gown_per_cleaner_current) * N_cleaner_current * pct_teacher_staff_in_school -> 14.33333333 | F17: set(s) | G17: 100 | H17: 1433.333333 | J17: Yes | K17: 12 | L17: 537.5
D18: Newly hired cleaning staff | E18: =N_newly_hired_cleaner * (N_school_days / N_school_days_per_academic_year) -> 0 | F18: FTE(s) | G18: 1000 | H18: 0 | L18: 0
D19: Overtime payment for cleaning staff | E19: =N_overtime_hour_per_cleaner_per_day * N_cleaner * pct_teacher_staff_in_school * N_school_days -> 0 | F19: hour(s) | G19: 1 | H19: 0 | L19: 0
C20: Provide personal protective equipment | D20: Reusable masks | E20: =N_reusable_mask -> 183.4666667 | F20: piece(s) | G20: 1 | H20: 183.4666667 | J20: Yes | K20: 12 | L20: 68.8 | N20: P102
D21: Disposable masks | E21: =N_disposable_mask -> 11833.6 | F21: piece(s) | G21: 1 | H21: 11833.6 | L21: 11833.6
D22: Face shields | E22: =N_shield_per_teacher_staff * N_teacher_and_staff * pct_teacher_staff_in_school -> 183.4666667 | F22: piece(s) | G22: 1 | H22: 183.4666667 | J22: Yes | K22: 12 | L22: 68.8
C23: Provide hand hygiene materials | D23: Alcohol-based antiseptic (at least 60 percent alcohol) | E23: =Antiseptic_per_person_per_day_gap * (N_student * pct_student_in_school + N_teacher_and_staff * pct_teacher_staff_in_school) * N_school_days/1000 -> 1390.608 | F23: liter(s) | G23: 1 | H23: 1390.608 | L23: 1390.608 | N23: P103
D24: Antiseptic dispensers | E24: =(N_antiseptic_dispenser_per_room - N_antiseptic_dispenser_per_room_current) * N_room_per_school * N_school * pct_school_reopen -> 107.5 | F24: piece(s) | G24: 1 | H24: 107.5 | J24: No | L24: 107.5
D25: Liquid soap | E25: =Liquid_soap_per_person_per_day_gap * (N_student * pct_student_in_school + N_teacher_and_staff * pct_teacher_staff_in_school) * N_school_days/1000 -> 1390.608 | F25: liter(s) | G25: 1 | H25: 1390.608 | L25: 1390.608
D26: Paper towels | E26: =(N_paper_towel_per_person_per_month - N_paper_towel_per_person_per_month_current)/20 * (N_student * pct_student_in_school + N_teacher_and_staff * pct_teacher_staff_in_school) * N_school_days -> 7725.6 | F26: roll(s) | G26: 1 | H26: 7725.6 | L26: 7725.6
D27: EPA-registered disposable wipes | E27: =(N_package_wipes_per_person_per_month - N_package_wipes_per_person_per_month_current)/20 * (N_student * pct_student_in_school + N_teacher_and_staff * pct_teacher_staff_in_school) * N_school_days -> 7725.6 | F27: package(s) | G27: 1 | H27: 7725.6 | L27: 7725.6
D28: No-touch/foot-pedal trash cans | E28: =(N_trash_can_per_room - N_trash_can_per_room_current) * N_room_per_school * N_school * pct_school_reopen -> 107.5 | F28: piece(s) | G28: 1 | H28: 107.5 | J28: Yes | K28: 36 | L28: 13.4375
D29: Hand dryer | E29: =(N_hand_dryer_per_restroom - N_hand_dryer_per_restroom_current) * ROUNDUP(N_class/N_school/Classroom_restroom_ratio,0) * N_school * pct_school_reopen -> 0 | F29: piece(s) | G29: 10 | H29: 0 | J29: Yes | K29: 60 | L29: 0
C30: Provide on-site health screenings | D30: Automatic temperature sensors | E30: =N_temp_sensor_per_school * N_school * pct_school_reopen -> 14.33333333 | F30: piece(s) | G30: 10 | H30: 143.3333333 | J30: Yes | K30: 36 | L30: 17.91666667 | N30: P104
D31: Oximeter | E31: =N_oximeter_per_school * N_school * pct_school_reopen -> 14.33333333 | F31: piece(s) | G31: 10 | H31: 143.3333333 | J31: Yes | K31: 36 | L31: 17.91666667
D32: Overtime payment for screening staff who are sufficiently trained in screening procedures | E32: =N_overtime_hour_per_screener_per_day * N_screening_staff_per_school * N_school * pct_school_reopen * N_school_days -> 1290 | F32: hour(s) | G32: 20 | H32: 25800 | L32: 25800
D33: Protective masks and disposable gloves for screening staff | E33: =N_PPE_per_screener_per_day * N_screening_staff_per_school * N_school * pct_school_reopen * N_school_days -> 1290 | F33: set(s) | G33: 1 | H33: 1290 | L33: 1290
D34: Newly hired full-time nurses | E34: =N_newly_hired_nurse* (N_school_days/N_school_days_per_academic_year) -> 1 | F34: FTE(s) | G34: 1000 | H34: 1000 | L34: 1000
D35: Overtime payment for full-time nurses | E35: =N_overtime_hour_per_nurse_per_day * N_nurse * pct_teacher_staff_in_school * N_school_days -> 774 | F35: hour(s) | G35: 20 | H35: 15480 | L35: 15480
D36: Emergency room/health clinic/isolation rooms | E36: =N_isolation_room_per_school * N_school * pct_school_reopen -> 14.33333333 | F36: room(s) | G36: 1 | H36: 14.33333333 | L36: 14.33333333
C37: Monitor symptoms through parent-reported surveys | D37: Overtime payment for technicians to i) set up the online health monitoring and reporting platform and ii) prepare and disseminate daily reporting | E37: =N_overtime_hour_per_technician_per_day_monitoring * N_technician * pct_teacher_staff_in_school * N_school_days -> 0 | F37: hour(s) | G37: 20 | H37: 0 | L37: 0 | N37: P105
C38: Limit sharing objects | D38: Teaching or learning materials that need to be purchased to limit sharing | E38: =N_set_TLM -> 100 | F38: set(s) | G38: 1 | H38: 100 | J38: Yes | K38: 12 | L38: 37.5 | N38: P106
C39: Ensure spaces, materials, and strategies to maintain physical and social distancing | D39: Rental cost of community unused spaces | E39: =N_space_per_school_per_day * N_school * pct_school_reopen * N_school_days -> 0 | F39: square meter(s) * day(s) | G39: 1 | H39: 0 | L39: 0 | N39: P107
C40: Establish physical barriers and guides | D40: Physical barriers in the classrooms | E40: =N_physical_screen_per_student * N_student_per_school * (N_school * pct_school_reopen * pct_school_classroom_barrier) -> 1146.666667 | F40: piece(s) | G40: 10 | H40: 11466.66667 | J40: Yes | K40: 24 | L40: 2150 | N40: P108
D41: Physical barriers between restroom sinks | E41: =(N_sink_per_restroom - 1) * ROUNDUP(N_class/N_school/Classroom_restroom_ratio, 0) * (N_school * pct_school_reopen * pct_school_restroom_barrier) -> 68.8 | F41: piece(s) | G41: 10 | H41: 688 | J41: Yes | K41: 24 | L41: 129
D42: Tapes to mark signs on floors or sidewalks | E42: =N_tape_per_school * N_school * pct_school_reopen -> 71.66666667 | F42: roll(s) | G42: 1 | H42: 71.66666667 | J42: No | L42: 71.66666667
D43: Posters or signs on walls | E43: =N_poster_per_school * N_school * pct_school_reopen -> 71.66666667 | F43: poster(s) | G43: 10 | H43: 716.6666667 | J43: Yes | K43: 24 | L43: 134.375
C44: Train students, teachers, staff, and parents on safe school operations | D44: Overtime payment for teachers and staff to participate in the training on safe operations | E44: =N_overtime_hour_per_teacher_staff_safety_training * N_teacher_and_staff * pct_teacher_staff_in_school -> 183.4666667 | F44: hour(s) | G44: 20 | H44: 3669.333333 | L44: 3669.333333 | N44: P109
C45: Maintain appropriate collaboration and coordination with local public health authorities. | D45: Gowns or white scrubs for school nurses | E45: =N_gown_per_nurse * N_newly_hired_nurse + (N_gown_per_nurse - N_gown_per_nurse_current) * N_nurse_current * pct_teacher_staff_in_school -> 11.16666667 | F45: piece(s) | G45: 1 | H45: 11.16666667 | J45: Yes | K45: 24 | L45: 2.09375 | N45: P110
D46: PPE needed to address suspected cases | E46: =N_PPE_per_case * N_suspected_cases_per_school_per_day * N_school * pct_school_reopen * N_school_days -> 1290 | F46: set(s) | G46: 1 | H46: 1290 | L46: 1290
C47: Adapt transportation | D47: Fog machines for buses | E47: =N_fog_machine_per_bus * N_newly_hired_driver + (N_fog_machine_per_bus - N_fog_machine_per_bus_current) * N_driver_current * pct_teacher_staff_in_school -> 3.583333333 | F47: piece(s) | G47: 1 | H47: 3.583333333 | J47: Yes | K47: 36 | L47: 0.4479166667 | N47: P111
D48: Disinfectant for buses | E48: =Disinfectant_bus_per_trip_gap * (N_student * pct_student_in_school * pct_student_bus)/(N_student_full_capacity_school_bus * pct_bus_capacity) * 2 * N_school_days/1000 -> 1.13635548 | F48: liter(s) | G48: 1 | H48: 1.13635548 | L48: 1.13635548
D49: Automatic temperature sensors to screen student temperature before boarding | E49: =N_temperature_sensor_per_bus * N_driver * pct_teacher_staff_in_school -> 7.166666667 | F49: piece(s) | G49: 10 | H49: 71.66666667 | J49: Yes | K49: 36 | L49: 8.958333333
D50: Alcohol-based antiseptic (at least 70 percent alcohol) | E50: =Antiseptic_per_person_per_day_bus_gap * (N_student * pct_student_in_school * pct_student_bus) * N_school_days/1000 -> 248.4 | F50: liter(s) | G50: 1 | H50: 248.4 | L50: 248.4
D51: Antiseptic dispensers | E51: =N_dispenser_per_bus * N_newly_hired_driver + (N_dispenser_per_bus - N_dispenser_per_bus_current) * N_driver_current * pct_teacher_staff_in_school -> 7.166666667 | F51: piece(s) | G51: 1 | H51: 7.166666667 | J51: No | L51: 7.166666667
D52: Additional fuel | E52: =N_school * pct_school_reopen * (pct_student_bus / pct_student_bus_pre_covid) * (1 / pct_bus_capacity - 1) -> 4.3 | F52: time(s) * school(s) | G52: 1 | H52: 4.3 | L52: 4.3
C53: Adapt ventilation | D53: Updating HVAC systems | E53: =N_school * pct_school_reopen * pct_school_HVAC_updating -> 0.7166666667 | F53: school(s) | G53: 1000 | H53: 716.6666667 | J53: Yes | K53: 36 | L53: 89.58333333 | N53: P112
C54: Reorganize lunch programs | D54: Gowns, aprons and caps for food service workers | E54: =N_gown_food_worker * N_newly_hired_food_staff + (N_gown_food_worker - N_gown_food_worker_current) * N_food_staff_current * pct_teacher_staff_in_school -> 0 | F54: set(s) | G54: 1 | H54: =E54*G54 -> 0 | J54: Yes | K54: 24 | L54: 0 | N54: P113
D55: Disposable utensils | E55: =(N_disposable_utensil_per_student - N_disposable_utensil_per_student_current) * N_student * pct_student_in_school * pct_student_lunch * N_school_days -> 0 | F55: set(s) | G55: 1 | H55: 0 | L55: 0
D56: Disposable dishes | E56: =(N_disposable_dish_per_student - N_disposable_dish_per_student_current) * N_student * pct_student_in_school * pct_student_lunch * N_school_days -> 0 | F56: set(s) | G56: 1 | H56: 0 | L56: 0
C57: Pillar 2: Measures to recover learning
C58: Provide teacher professional development | D58: Overtime payment for teachers to participate in the training sessions on pedagogy | E58: =IF(teacher_pd = "Reopened schools", N_PD_session_per_teacher * N_hour_per_training_session * pct_teacher_PD * pct_teacher_staff_in_school * N_teacher_and_staff, N_PD_session_per_teacher * N_hour_per_training_session * pct_teacher_PD * N_teacher_and_staff) -> 512 | F58: hour(s) | G58: 20 | H58: 10240 | L58: =IF(J58 = "Yes", H58/K58 * (N_school_days/20), H58) -> 10240 | N58: P201
D59: Compensation for external trainers to provide the training sessions | E59: =N_external_trainer * N_session_per_trainer * N_hour_per_PD_session -> 1000 | F59: hour(s) | G59: 30 | H59: 30000 | J59: Yes | K59: 12 | L59: 11250
D60: Training materials | E60: =IF(teacher_pd = "Reopened schools", N_PD_materials_per_teacher * N_teacher * pct_teacher_PD * pct_teacher_staff_in_school, N_PD_materials_per_teacher * N_teacher * pct_teacher_PD) -> 105 | F60: set(s) | G60: 10 | H60: 1050 | J60: Yes | K60: 12 | L60: 393.75
C61: Continue flexible or partial remote learning approaches | D61: Remote learning platforms | E61: 1 | F61: set | G61: =Calculators!P229 -> 0 | H61: 0 | J61: Yes | K61: 12 | L61: 0 | N61: P202
D62: Compensation for internet access | E62: =(pct_teacher_internet * N_teacher + pct_student_internet * N_student) * ROUNDUP((N_school_days/20), 0) -> 5210 | F62: person(s)*months | G62: 10 | H62: 52100 | L62: 52100
D63: Compensation for cell phone data plans | E63: =(pct_teacher_data_plan * N_teacher + pct_student_data_plan * N_student) * ROUNDUP((N_school_days/20), 0) -> 5210 | F63: person(s)*months | G63: 10 | H63: 52100 | L63: 52100
D64: Desktop computers | E64: =N_desktop -> 100 | F64: piece(s) | G64: 200 | H64: 20000 | J64: Yes | K64: 36 | L64: 2500
D65: Laptops | E65: =N_laptop -> 200 | F65: piece(s) | G65: 150 | H65: 30000 | J65: Yes | K65: 36 | L65: 3750
D66: Tablets | E66: =N_tablet -> 200 | F66: piece(s) | G66: 100 | H66: 20000 | J66: Yes | K66: 36 | L66: 2500
D67: Phones | E67: =N_phone -> 200 | F67: piece(s) | G67: 100 | H67: 20000 | J67: Yes | K67: 36 | L67: 2500
D68: Newly hired technicians | E68: =N_newly_hired_technician * (N_school_days/N_school_days_per_academic_year) -> 0.5 | F68: FTE(s) | G68: 1000 | H68: 500 | L68: 500
D69: Overtime payment for technicians or other staff to provide technical assistance | E69: =N_overtime_hour_per_technician_per_day_tech_support * N_technician * N_school_days -> 990 | F69: hour(s) | G69: 20 | H69: 19800 | L69: 19800
C70: Conduct diagnosis assessments | D70: License fee of the assessments | E70: =N_license_assessment -> 1 | F70: license(s) | G70: 100 | H70: 100 | J70: Yes | K70: 12 | L70: 37.5 | N70: P203
D71: Printing of the assessments (if delivered on paper) | E71: =IF(diagnosis_assessment = "Reopened schools", N_page_assessment * N_student * pct_student_in_school * pct_student_test, N_page_assessment * N_student * pct_student_test) -> 2913.333333 | F71: page(s) | G71: 1 | H71: 2913.333333 | L71: 2913.333333
D72: Compensation for external assessment specialists to develop the assessments and provide training | E72: =N_assessment_specialist * N_hour_per_assessment_specialist -> 100 | F72: hour(s) | G72: 50 | H72: 5000 | J72: Yes | K72: 12 | L72: 1875
C73: Increase intensity and differentiation (personalized learning) | D73: License fees for the remedial or accelerated programs | E73: =N_license_personalized_learning_program -> 1 | F73: license(s) | G73: 500 | H73: 500 | J73: Yes | K73: 12 | L73: 187.5 | N73: P204
D74: Payment for teaching aids to provide personalized learning in the format of tutoring | E74: =N_hour_teaching_aid -> 204.4444444 | F74: hour(s) | G74: 20 | H74: =E74*G74 -> 4088.888889 | L74: 4088.888889
C75: Extend schedules | D75: Overtime payment for teachers to provide instructions | E75: =IF(extend_schedules = "Reopened schools", N_hour_per_extended_day * N_extended_day * N_teacher * pct_teacher_staff_in_school, N_hour_per_extended_day * N_extended_day * N_teacher ) -> 18060 | F75: hour(s) | G75: 20 | H75: 361200 | L75: 361200 | N75: P205
C76: Hire new teachers, reorganize the working shifts or extend the working hours of teachers | D76: Newly hired teachers to ensure smaller class size and substitute sick colleagues | E76: =N_newly_hired_teacher * (N_school_days / N_school_days_per_academic_year) -> 2.5 | F76: FTE(s) | G76: 1000 | H76: 2500 | L76: 2500 | N76: P206
D77: Overtime payment for current teachers to substitute sick colleagues | E77: =N_hour_substitute * pct_hour_substitute_by_current_teacher -> 80 | F77: hour(s) | G77: 20 | H77: 1600 | L77: 1600
C78: Pillar 3: Measures to support emotional wellbeing and recovery | H78: 0
C79: Provide dedicated psychosocial support and counselling | D79: Newly hired counselors | E79: =N_newly_hired_counselor * (N_school_days / N_school_days_per_academic_year) -> 0.5 | F79: FTE(s) | G79: 2000 | H79: 1000 | L79: =IF(J79 = "Yes", H79/K79 * (N_school_days/20), H79) -> 1000 | N79: P301
D80: Overtime payment for counselors | E80: =IF(counselling = "Reopened schools", N_overtime_hour_per_counselor_per_day * N_counselor * pct_teacher_staff_in_school * N_school_days, N_overtime_hour_per_counselor_per_day * N_counselor * N_school_days) -> 0 | F80: hour(s) | G80: 30 | H80: 0 | L80: 0
D81: Newly hired social workers | E81: =N_newly_hired_social_worker * (N_school_days / N_school_days_per_academic_year) -> 0.5 | F81: FTE(s) | G81: 2000 | H81: 1000 | L81: 1000
D82: Overtime payment for social workers | E82: =IF(counselling = "Reopened schools", N_overtime_hour_per_social_worker_per_day * N_social_worker * pct_teacher_staff_in_school * N_school_days, N_overtime_hour_per_social_worker_per_day * N_social_worker * N_school_days) -> 0 | F82: hour(s) | G82: 30 | H82: 0 | L82: 0
D83: Newly hired psychologists | E83: =N_newly_hired_psychologist * (N_school_days / N_school_days_per_academic_year) -> 0.5 | F83: FTE(s) | G83: 2000 | H83: 1000 | L83: 1000
D84: Overtime payment for psychologists | E84: =IF(counselling = "Reopened schools", N_overtime_hour_per_psychologist_per_day * N_psychologist * pct_teacher_staff_in_school * N_school_days, N_overtime_hour_per_psychologist_per_day * N_psychologist * N_school_days) -> 0 | F84: hour(s) | G84: 30 | H84: 0 | L84: 0
C85: Adopt social and emotional learning (SEL) programs | D85: Overtime payment for teachers to participate in the training sessions on SEL | E85: =IF(SEL_programs = "Reopened schools", N_SEL_training_per_teacher * N_hour_SEL_training_per_session * N_teacher * pct_teacher_staff_in_school * pct_teacher_SEL_training, N_SEL_training_per_teacher * N_hour_SEL_training_per_session * N_teacher * pct_teacher_SEL_training) -> 15.05 | F85: hour(s) | G85: 20 | H85: 301 | L85: 301 | N85: P302
D86: Overtime payment for teachers to promote SEL | E86: =IF(SEL_programs = "Reopened schools", N_overtime_hour_per_teacher_per_day_SEL * N_teacher * pct_teacher_staff_in_school * pct_teacher_overtime_SEL * N_school_days, N_overtime_hour_per_teacher_per_day_SEL * N_teacher * pct_teacher_overtime_SEL * N_school_days) -> 1354.5 | F86: hour(s) | G86: 30 | H86: 40635 | L86: 40635
D87: License fees for SEL programs adopted | E87: =N_license_SEL -> 4 | F87: license(s) | G87: 2000 | H87: 8000 | J87: Yes | K87: 12 | L87: 3000
C88: Pillar 4: Measures to reach the most marginalized
C89: Provide adequate supports for recovery needs, especially for disadvantaged and vulnerable students | D89: Special or adapted protective equipment | E89: =N_adapted_PPE_per_school * N_school * pct_school_reopen -> 71.66666667 | F89: set(s) | G89: 10 | H89: 716.6666667 | J89: No | L89: =IF(J89 = "Yes", H89/K89 * (N_school_days/20), H89) -> 716.6666667 | N89: P401
D90: <Please specify other resources based on the support provided> | H90: 0 | L90: 0
C91: Conduct reenrollment campaigns and wraparound supports to prevent dropouts | D91: Staff time to design and implement the enrollment campaigns | E91: =IF(reenrollment_campaign = "Reopened schools", N_hour_per_mobilizer * N_mobilizer * pct_teacher_staff_in_school, N_hour_per_mobilizer * N_mobilizer) -> 71.66666667 | F91: hour(s) | G91: 30 | H91: =E91*G91 -> 2150 | J91: Yes | K91: 12 | L91: 806.25 | N91: P402
D92: Transportation cost for the campaigns | E92: =N_enrollment_campaign_trips -> 120 | F92: trip(s) | G92: 200 | H92: 24000 | L92: 24000
D93: Feeding programs | E93: =N_feeding_program_beneficiery -> 100 | F93: beneficiary/beneficiaries | G93: 500 | H93: 50000 | L93: 50000
D94: Provision of school uniforms | E94: =N_school_uniforms -> 100 | F94: set(s) of uniform | G94: 300 | H94: 30000 | J94: Yes | K94: 12 | L94: 11250
D95: Removing or waiving school fees | E95: =N_school_fee_waiver -> 100 | F95: fee waiver(s) | G95: 500 | H95: 50000 | L95: 50000
D96: <Please specify other resources based on the support provided> | H96: 0 | L96: 0
C97: Monitor and plan for absenteeism | D97: Overtime payment for staff to monitor and plan for absenteeism | E97: =N_staff_member_absenteeism_monitoring * N_overtime_hour_per_person_per_day_monitor_absenteeism * N_school * pct_school_reopen -> 14.33333333 | F97: hour(s) | G97: 20 | H97: 286.6666667 | L97: 286.6666667 | N97: P403
G98: 1
C100: Word count
C101: =SUM(IF(LEN(TRIM(B1:I98))=0,0,LEN(TRIM(B1:I98))-LEN(SUBSTITUTE(B1:I98," ",""))+1)) -> 1018

Sheet Funding
C5: <Specify funding available from both domestic and external sources and the % of funding subject to reallocation>
C7: Funding source | D7: Amount available | E7: % subject to reallocation | F7: Total funding
C8: Savings from the cancellation of field trips, events, and extracurricular activities | D8: 1000 | E8: 1 | F8: =D8*E8 -> 1000
C9: Savings from previous school closure | D9: 1000 | E9: 1 | F9: 1000
C10: External funding | D10: 160100 | E10: 1 | F10: 160100
C11: COVID-19 relief package | D11: 280000 | E11: 1 | F11: 280000
C12: Donation | D12: 1000 | E12: 1 | F12: 1000
F13: 0
F14: =D14*E14 -> 0
F15: 0
F16: 0
F17: 0
F18: 0
F19: 0
C22: Word count
C23: =SUM(IF(LEN(TRIM(B1:G20))=0,0,LEN(TRIM(B1:G20))-LEN(SUBSTITUTE(B1:G20," ",""))+1)) -> 71

Sheet Report
C7: How much does it cost to reopen schools safely?
E9: Context | I9: ="Cost, funding and financial gap to reopen schools safely during "&LOWER('Basic information about schools'!D43)&"" -> Cost, funding and financial gap to reopen schools safely during the fall sesmeter of 2021
E10: =CHOOSE(Output!C3, Output!C4, Output!C5, Output!C6, Output!C7, Output!C8) -> Malgudi, India | L10: ="(Expressed in "&'Basic information about schools'!G99&" in "&'Basic information about schools'!G101&" values)" -> (Expressed in MRupee in 2021 values)
E13: Education levels
D14: =_xlfn.ANCHORARRAY(Output!O3) -> Pre-primary education (Ages 3-5) | E14: =IF(Output!K3 = TRUE, Output!M3, "") -> Pre-primary education (Ages 3-5)
D15: Primary education (K-3) | E15: =IF(Output!K4 = TRUE, Output!M4, "") -> Primary education (K-3)
E16: =IF(Output!K5 = TRUE, Output!M5, "") -> 
E17: =IF(Output!K6 = TRUE, Output!M6, "") -> 
E18: =IF(Output!K7 = TRUE, Output!M7, "") -> 
E21: Time period
E22: ='Basic information about schools'!D43 -> The Fall sesmeter of 2021
E23: ="("&N_school_days&" school days in total)" -> (90 school days in total) | I23: ="The financial cost of the additional resources needed to reopen schools safely by pillar" -> The financial cost of the additional resources needed to reopen schools safely by pillar
L24: ="(Expressed in "&'Basic information about schools'!G99&" in "&'Basic information about schools'!G101&" values)" -> (Expressed in MRupee in 2021 values)
E26: Population to serve
E27: =N_school -> 10 | F27: schools
E28: =N_student -> 2000 | F28: students
E31: School reopening status
E32: =""&ROUND(pct_school_reopen, 2) *100&"%" -> 72% | F32: of all schools provide in-person classes
E35: =""&ROUND(pct_student_in_school, 2) *100&"%" -> 77% | F35: % all students attend in-person classes
I37: ="The economic cost of the additional resources needed to reopen schools safely by pillar" -> The economic cost of the additional resources needed to reopen schools safely by pillar
L38: ="(Expressed in "&'Basic information about schools'!G99&" in "&'Basic information about schools'!G101&" values)" -> (Expressed in MRupee in 2021 values)
E39: Notes
E40: 1) The baseline is the budget for the same student population in the pre-COVID-19 era. 2)Financial cost captures the resources that are paid for. Economic cost takes into account the fact that some resources can be used beyond this time period of interest.
C54: 1. More explanation on financial cost and economic cost Some resources are purchased during the time period of interest, but can still be used beyond this time period, such as laptops. The financial cost would be the total cost of the purchased laptops without any amortization. If the expected lifetime of these laptops is 3 years, the economic cost of these laptops for one year of use is approximately one third of the financial cost. To estimate economic cost, please fill out Columns J and K in the spreadsheet of "Prices of additional resources".
C56: 2. How to print the report? Step 1: Select the area to print Select Cell B7, then with the left mouse button pressed, drag over to Cell T51. Step 2: Click File > Print, or press CTRL + P. Step 3: Click the Print button and adjust the settings. a) Change to "Landscape orientations". b) Select "Fit sheet on one page". c) Adjust the margins based on your needs.
C57: Word count
C58: =SUM(IF(LEN(TRIM(B1:T56))=0,0,LEN(TRIM(B1:T56))-LEN(SUBSTITUTE(B1:T56," ",""))+1)) -> 333

Sheet Items to purchase
C6: <A list of materials and equipment that need to be purchased is generated automatically. The quantity represents the total needs, NOT the additional resources needed>
C7: Items to purchase (materials and equipment) | D7: Quantity | E7: Unit
C8: Disinfectant | D8: =Disinfectant_per_school_per_day * (N_school * pct_school_reopen) * N_school_days -> 725.625 | E8: liter(s) | G8: p101
C9: Empty containers for diluting cleaning and disinfection products | D9: =N_container_per_cleaner * N_newly_hired_cleaner + (N_container_per_cleaner - N_container_per_cleaner_current) * N_cleaner_current * pct_teacher_staff_in_school -> 7.166666667 | E9: piece(s)
C10: Electrostatic disinfectant sprayers | D10: =N_sprayer_per_cleaner * N_newly_hired_cleaner + (N_sprayer_per_cleaner - N_sprayer_per_cleaner_current) * N_cleaner_current * pct_teacher_staff_in_school -> 7.166666667 | E10: piece(s)
C11: Mops, buckets and brushes | D11: =(N_mop_per_room - N_mop_per_room_current) * N_school * N_room_per_school * pct_teacher_staff_in_school -> 53.75 | E11: set(s)
C12: Soap bars | D12: =N_soap_bar_per_room * N_room_per_school * N_school * pct_school_reopen -> 107.5 | E12: piece(s)
C13: Rubber gloves for cleaning staff | D13: =N_glove_per_cleaner * N_newly_hired_cleaner + (N_glove_per_cleaner - N_glove_per_cleaner_current) * N_cleaner_current * pct_teacher_staff_in_school -> 14.33333333 | E13: pair(s)
C14: Disposable gowns for cleaning staff | D14: =N_disposable_gown_per_cleaner_per_day * N_cleaner * pct_school_reopen * N_school_days -> 1290 | E14: set(s)
C15: Reusable gowns and caps for cleaning staff | D15: =N_reusable_gown_per_cleaner * N_newly_hired_cleaner + (N_reusable_gown_per_cleaner - N_reusable_gown_per_cleaner_current) * N_cleaner_current * pct_teacher_staff_in_school -> 14.33333333 | E15: set(s)
C16: Reusable masks | D16: =N_reusable_mask -> 183.4666667 | E16: piece(s) | G16: P102
C17: Disposable masks | D17: =N_disposable_mask -> 11833.6 | E17: piece(s)
C18: Face shields | D18: =N_shield_per_teacher_staff * N_teacher_and_staff * pct_teacher_staff_in_school -> 183.4666667 | E18: piece(s)
C19: Alcohol-based antiseptic (at least 60 percent alcohol) | D19: =Antiseptic_per_person_per_day * (N_student * pct_student_in_school + N_teacher_and_staff * pct_teacher_staff_in_school) * N_school_days/1000 -> 2317.68 | E19: liter(s) | G19: P103
C20: Antiseptic dispensers | D20: =(N_antiseptic_dispenser_per_room - N_antiseptic_dispenser_per_room_current) * N_room_per_school * N_school * pct_school_reopen -> 107.5 | E20: piece(s)
C21: Liquid soap | D21: =Liquid_soap_per_person_per_day * (N_student * pct_student_in_school + N_teacher_and_staff * pct_teacher_staff_in_school) * N_school_days/1000 -> 2317.68 | E21: liter(s)
C22: Paper towels | D22: =(N_paper_towel_per_person_per_month - N_paper_towel_per_person_per_month_current)/20 * (N_student * pct_student_in_school + N_teacher_and_staff * pct_teacher_staff_in_school) * N_school_days -> 7725.6 | E22: roll(s)
C23: EPA-registered disposable wipes | D23: =(N_package_wipes_per_person_per_month - N_package_wipes_per_person_per_month_current)/20 * (N_student * pct_student_in_school + N_teacher_and_staff * pct_teacher_staff_in_school) * N_school_days -> 7725.6 | E23: package(s)
C24: No-touch/foot-pedal trash cans | D24: =(N_trash_can_per_room - N_trash_can_per_room_current) * N_room_per_school * N_school * pct_school_reopen -> 107.5 | E24: piece(s)
C25: Hand dryer | D25: =(N_hand_dryer_per_restroom - N_hand_dryer_per_restroom_current)*ROUNDUP(N_class/N_school/Classroom_restroom_ratio,0)*N_school * pct_school_reopen -> 0 | E25: piece(s)
C26: Automatic temperature sensors | D26: =N_temp_sensor_per_school * N_school * pct_school_reopen -> 14.33333333 | E26: piece(s) | G26: P104
C27: Oximeter | D27: =N_oximeter_per_school * N_school * pct_school_reopen -> 14.33333333 | E27: piece(s)
C28: Protective masks and disposable gloves for screening staff | D28: =N_PPE_per_screener_per_day * N_screening_staff_per_school * N_school * pct_school_reopen * N_school_days -> 1290 | E28: set(s)
C29: Physical barriers in the classrooms | D29: =N_physical_screen_per_student * N_student_per_school * (N_school * pct_school_reopen * pct_school_classroom_barrier) -> 1146.666667 | E29: piece(s) | G29: P108
C30: Physical barriers between restroom sinks | D30: =(N_sink_per_restroom - 1) * ROUNDUP(N_class/N_school/Classroom_restroom_ratio, 0) * (N_school * pct_school_reopen * pct_school_restroom_barrier) -> 68.8 | E30: piece(s)
C31: Tapes to mark signs on floors or sidewalks | D31: =N_tape_per_school * N_school * pct_school_reopen -> 71.66666667 | E31: roll(s)
C32: Posters or signs on walls | D32: =N_poster_per_school * N_school * pct_school_reopen -> 71.66666667 | E32: poster(s)
C33: Gowns or white scrubs for school nurses | D33: =N_gown_per_nurse * N_newly_hired_nurse + (N_gown_per_nurse - N_gown_per_nurse_current) * N_nurse * pct_teacher_staff_in_school -> 12.6 | E33: piece(s) | G33: P110
C34: PPE needed to address suspected cases | D34: =N_PPE_per_case * N_suspected_cases_per_school_per_day * N_school * pct_school_reopen * N_school_days -> 1290 | E34: set(s)
C35: Fog machines for buses | D35: =N_fog_machine_per_bus * N_newly_hired_driver + (N_fog_machine_per_bus - N_fog_machine_per_bus_current) * N_driver * pct_teacher_staff_in_school -> 3.583333333 | E35: piece(s) | G35: P111
C36: Disinfectant for buses | D36: =Disinfectant_bus_per_trip * (N_student * pct_student_in_school * pct_student_bus)/(N_student_full_capacity_school_bus * pct_bus_capacity) * 2 * N_school_days/1000 -> 1.2626172 | E36: liter(s)
C37: Automatic temperature sensors to screen student temperature before boarding | D37: =N_temperature_sensor_per_bus * N_driver * pct_teacher_staff_in_school -> 7.166666667 | E37: piece(s)
C38: Alcohol-based antiseptic (at least 70 percent alcohol) | D38: =Antiseptic_per_person_per_day_bus * (N_student * pct_student_in_school * pct_student_bus) * N_school_days/1000 -> 248.4 | E38: liter(s)
C39: Antiseptic dispensers | D39: =N_dispenser_per_bus * N_newly_hired_driver + (N_dispenser_per_bus - N_dispenser_per_bus_current) * N_driver_current * pct_teacher_staff_in_school -> 7.166666667 | E39: piece(s)
C40: Gowns, aprons and caps for food service workers | D40: =N_gown_food_worker * N_newly_hired_food_staff + (N_gown_food_worker - N_gown_food_worker_current) * N_food_staff_current * pct_teacher_staff_in_school -> 0 | E40: set(s) | G40: P113
C41: Disposable utensils | D41: =(N_disposable_utensil_per_student - N_disposable_utensil_per_student_current) * N_student * pct_student_in_school * pct_student_lunch * N_school_days -> 0 | E41: set(s)
C42: Disposable dishes | D42: =(N_disposable_dish_per_student - N_disposable_dish_per_student_current) * N_student * pct_student_in_school * pct_student_lunch * N_school_days -> 0 | E42: set(s)
C43: Desktop computers | D43: =N_desktop -> 100 | E43: piece(s) | G43: P202
C44: Laptops | D44: =N_laptop -> 200 | E44: piece(s)
C45: Tablets | D45: =N_tablet -> 200 | E45: piece(s)
C46: Phones | D46: =N_phone -> 200 | E46: piece(s)
C47: Special or adapted protective equipment | D47: =N_adapted_PPE_per_school * N_school * pct_school_reopen -> 71.66666667 | E47: set(s) | G47: P401
C50: Word count
C51: =SUM(IF(LEN(TRIM(B1:H48))=0,0,LEN(TRIM(B1:H48))-LEN(SUBSTITUTE(B1:H48," ",""))+1)) -> 280

Sheet Data prep
A2: Financial cost
B3: Total additional cost
A4: Safe operations | B4: =_xlfn.AGGREGATE(9, 5, 'Prices of additional resources'!H9:H56) -> 243619.5357
A5: Recovering learning | B5: =_xlfn.AGGREGATE(9, 5, 'Prices of additional resources'!H58:H77) -> 633692.2222
A6: Supporting emotional wellbeing | B6: =_xlfn.AGGREGATE(9, 5, 'Prices of additional resources'!H79:H87) -> 51936
A7: Reaching the marginalized | B7: =_xlfn.AGGREGATE(9, 5, 'Prices of additional resources'!H89:H97) -> 157153.3333
A8: Total | B8: =SUM(B4:B7) -> 1086401.091
B10: Total
A11: Additional cost | B11: =B8 -> 1086401.091
A12: Additional funding available | B12: =_xlfn.AGGREGATE(9, 5, Funding!F8:F19) -> 443100
A13: Funding gap | B13: =B11-B12 -> 643301.0912
A15: Figure 1
B16: Bottom block | C16: Top block | D16: Horizontal lines
A17: Additional cost | B17: =B11 -> 1086401.091 | C17: =B17-B11 -> 0 | D17: =B13 -> 643301.0912
A18: Additional funding available | B18: =B13 -> 643301.0912 | C18: =B12 -> 443100 | D18: =D17 -> 643301.0912
A19: Funding gap | B19: =B13 -> 643301.0912 | C19: =B12 -> 443100 | D19: =D17 -> 643301.0912
A21: Figure 2 & Figure 3
B22: Additional cost | C22: %
A23: =A4 -> Safe operations | B23: =B4 -> 243619.5357 | C23: =B23/SUM(B$23:B$26) -> 0.2242445609
A24: =A5 -> Recovering learning | B24: 633692.2222 | C24: =B24/SUM(B$23:B$26) -> 0.5832949058
A25: Supporting emotional wellbeing | B25: 51936 | C25: 0.04780554845
A26: Reaching the marginalized | B26: 157153.3333 | C26: 0.1446549848
A28: Economic cost
A29: Figure 4 & Figure 5
B30: Additional cost
A31: =A4 -> Safe operations | B31: =_xlfn.AGGREGATE(9, 5, 'Prices of additional resources'!L9:L56) -> 225462.4315
A32: =A5 -> Recovering learning | B32: =_xlfn.AGGREGATE(9, 5, 'Prices of additional resources'!L58:L77) -> 532035.9722
A33: Supporting emotional wellbeing | B33: =_xlfn.AGGREGATE(9, 5, 'Prices of additional resources'!L79:L87) -> 46936
A34: Reaching the marginalized | B34: =_xlfn.AGGREGATE(9, 5, 'Prices of additional resources'!L89:L97) -> 137059.5833
A37: Word count
A38: =SUM(IF(LEN(TRIM(A4:A19))=0,0,LEN(TRIM(A4:A19))-LEN(SUBSTITUTE(A4:A19," ",""))+1)) -> 27

Sheet Output
A1: Spreadsheet | B1: Measures | C1: Basic school information | D1: Basic school information | E1: Basic school information | F1: Basic school information | G1: Basic school information | H1: Basic school information | K1: Report
A2: Parameter | B2: Applicable to | C2: Location | D2: Education level: Pre-primary education | E2: Education level: Primary education | F2: Education level: Lower secondary education | G2: Education level: Upper secondary education | H2: Education level: Tertiary education | I2: Private school included | K2: Education levels | L2: Label of education level | M2: Education level + grade level | O2: Filter list
A3: Value | C3: 2 | D3: TRUE | E3: TRUE | F3: FALSE | G3: FALSE | H3: FALSE | I3: 1 | K3: =D3 -> TRUE | L3: Pre-primary education | M3: =_xlfn.CONCAT(L3, " (", 'Basic information about schools'!G35, ")") -> Pre-primary education (Ages 3-5) | O3: =_xlfn._xlws.FILTER(M3:M7, K3:K7 = TRUE, "") -> Pre-primary education (Ages 3-5)
A4: 1 | B4: All schools, regardless of their reopening status | C4: ='Basic information about schools'!F9 -> India | D4: pre-primary education, | E4: primary education, | F4: lower secondary education, | G4: upper secondary education, | H4: tertiary education | K4: =E3 -> TRUE | L4: Primary education | M4: =_xlfn.CONCAT(L4, " (", 'Basic information about schools'!G36, ")") -> Primary education (K-3) | O4: Primary education (K-3)
A5: 2 | B5: Reopened schools | C5: =_xlfn.CONCAT('Basic information about schools'!G27, ", ", 'Basic information about schools'!F9) -> Malgudi, India | K5: =F3 -> FALSE | L5: Lower secondary education | M5: =_xlfn.CONCAT(L5, " (", 'Basic information about schools'!G37, ")") -> Lower secondary education ()
A6: 3 | C6: =_xlfn.CONCAT('Basic information about schools'!G28, ", ", 'Basic information about schools'!F9) -> , India | K6: =G3 -> FALSE | L6: Upper secondary education | M6: =_xlfn.CONCAT(L6, " (", 'Basic information about schools'!G38, ")") -> Upper secondary education ()
A7: 4 | C7: =_xlfn.CONCAT('Basic information about schools'!G29, ", ", 'Basic information about schools'!F9) -> , India | K7: =H3 -> FALSE | L7: Tertiary education | M7: =_xlfn.CONCAT(L7, " (", 'Basic information about schools'!G39, ")") -> Tertiary education ()
A8: 5 | C8: =_xlfn.CONCAT('Basic information about schools'!G30, ", ", 'Basic information about schools'!F9) -> , India
A9: 6
A10: 7
A11: 8
A12: 9
A13: 10
A15: Word count
A16: =SUM(IF(LEN(TRIM(B3:L7))=0,0,LEN(TRIM(B3:L7))-LEN(SUBSTITUTE(B3:L7," ",""))+1)) -> 52

Sheet List_Economy
A1: World Bank list of economies (June 2020)
A3: (Bold indicates a change of classification)
A5: x | B5: x | C5: Economy | D5: Code | E5: X | F5: Region | G5: Income group | H5: Lending category | I5: Other | K5: Data prep
A6: x | B6: x | C6: x | D6: x | E6: x | F6: x | G6: x | H6: x | I6: x
A7: 1 | C7: Afghanistan | D7: AFG | F7: South Asia | G7: Low income | H7: IDA | I7: HIPC | K7: =_xlfn._xlws.FILTER($C$7:$C$225, ISNUMBER(SEARCH('Basic information about schools'!F9, $C$7:$C$225)),"Please check the spelling") -> India
A8: 2 | C8: Albania | D8: ALB | F8: Europe & Central Asia | G8: Upper middle income | H8: IBRD
A9: 3 | C9: Algeria | D9: DZA | F9: Middle East & North Africa | G9: Lower middle income | H9: IBRD
A10: 4 | C10: American Samoa | D10: ASM | F10: East Asia & Pacific | G10: Upper middle income | H10: ..
A11: 5 | C11: Andorra | D11: AND | F11: Europe & Central Asia | G11: High income | H11: ..
A12: 6 | C12: Angola | D12: AGO | F12: Sub-Saharan Africa | G12: Lower middle income | H12: IBRD
A13: 7 | C13: Antigua and Barbuda | D13: ATG | F13: Latin America & Caribbean | G13: High income | H13: IBRD
A14: 8 | C14: Argentina | D14: ARG | F14: Latin America & Caribbean | G14: Upper middle income | H14: IBRD
A15: 9 | C15: Armenia | D15: ARM | F15: Europe & Central Asia | G15: Upper middle income | H15: IBRD
A16: 10 | C16: Aruba | D16: ABW | F16: Latin America & Caribbean | G16: High income | H16: ..
A17: 11 | C17: Australia | D17: AUS | F17: East Asia & Pacific | G17: High income | H17: ..
A18: 12 | C18: Austria | D18: AUT | F18: Europe & Central Asia | G18: High income | H18: .. | I18: EMU
A19: 13 | C19: Azerbaijan | D19: AZE | F19: Europe & Central Asia | G19: Upper middle income | H19: IBRD
A20: 14 | C20: Bahamas, The | D20: BHS | F20: Latin America & Caribbean | G20: High income | H20: ..
A21: 15 | C21: Bahrain | D21: BHR | F21: Middle East & North Africa | G21: High income | H21: ..
A22: 16 | C22: Bangladesh | D22: BGD | F22: South Asia | G22: Lower middle income | H22: IDA
A23: 17 | C23: Barbados | D23: BRB | F23: Latin America & Caribbean | G23: High income | H23: ..
A24: 18 | C24: Belarus | D24: BLR | F24: Europe & Central Asia | G24: Upper middle income | H24: IBRD
A25: 19 | C25: Belgium | D25: BEL | F25: Europe & Central Asia | G25: High income | H25: .. | I25: EMU
A26: 20 | C26: Belize | D26: BLZ | F26: Latin America & Caribbean | G26: Upper middle income | H26: IBRD
A27: 21 | C27: Benin | D27: BEN | F27: Sub-Saharan Africa | G27: Lower middle income | H27: IDA | I27: HIPC
A28: 22 | C28: Bermuda | D28: BMU | F28: North America | G28: High income | H28: ..
A29: 23 | C29: Bhutan | D29: BTN | F29: South Asia | G29: Lower middle income | H29: IDA
A30: 24 | C30: Bolivia | D30: BOL | F30: Latin America & Caribbean | G30: Lower middle income | H30: IBRD | I30: HIPC
A31: 25 | C31: Bosnia and Herzegovina | D31: BIH | F31: Europe & Central Asia | G31: Upper middle income | H31: IBRD
A32: 26 | C32: Botswana | D32: BWA | F32: Sub-Saharan Africa | G32: Upper middle income | H32: IBRD
A33: 27 | C33: Brazil | D33: BRA | F33: Latin America & Caribbean | G33: Upper middle income | H33: IBRD
A34: 28 | C34: British Virgin Islands | D34: VGB | F34: Latin America & Caribbean | G34: High income | H34: ..
A35: 29 | C35: Brunei Darussalam | D35: BRN | F35: East Asia & Pacific | G35: High income | H35: ..
A36: 30 | C36: Bulgaria | D36: BGR | F36: Europe & Central Asia | G36: Upper middle income | H36: IBRD
A37: 31 | C37: Burkina Faso | D37: BFA | F37: Sub-Saharan Africa | G37: Low income | H37: IDA | I37: HIPC
A38: 32 | C38: Burundi | D38: BDI | F38: Sub-Saharan Africa | G38: Low income | H38: IDA | I38: HIPC
A39: 33 | C39: Cabo Verde | D39: CPV | F39: Sub-Saharan Africa | G39: Lower middle income | H39: Blend
A40: 34 | C40: Cambodia | D40: KHM | F40: East Asia & Pacific | G40: Lower middle income | H40: IDA
A41: 35 | C41: Cameroon | D41: CMR | F41: Sub-Saharan Africa | G41: Lower middle income | H41: Blend | I41: HIPC
A42: 36 | C42: Canada | D42: CAN | F42: North America | G42: High income | H42: ..
A43: 37 | C43: Cayman Islands | D43: CYM | F43: Latin America & Caribbean | G43: High income | H43: ..
A44: 38 | C44: Central African Republic | D44: CAF | F44: Sub-Saharan Africa | G44: Low income | H44: IDA | I44: HIPC
A45: 39 | C45: Chad | D45: TCD | F45: Sub-Saharan Africa | G45: Low income | H45: IDA | I45: HIPC
A46: 40 | C46: Channel Islands | D46: CHI | F46: Europe & Central Asia | G46: High income | H46: ..
A47: 41 | C47: Chile | D47: CHL | F47: Latin America & Caribbean | G47: High income | H47: IBRD
A48: 42 | C48: China | D48: CHN | F48: East Asia & Pacific | G48: Upper middle income | H48: IBRD
A49: 43 | C49: Colombia | D49: COL | F49: Latin America & Caribbean | G49: Upper middle income | H49: IBRD
A50: 44 | C50: Comoros | D50: COM | F50: Sub-Saharan Africa | G50: Lower middle income | H50: IDA | I50: HIPC
A51: 45 | C51: Congo, Dem. Rep. | D51: COD | F51: Sub-Saharan Africa | G51: Low income | H51: IDA | I51: HIPC
A52: 46 | C52: Congo, Rep. | D52: COG | F52: Sub-Saharan Africa | G52: Lower middle income | H52: Blend | I52: HIPC
A53: 47 | C53: Costa Rica | D53: CRI | F53: Latin America & Caribbean | G53: Upper middle income | H53: IBRD
A54: 48 | C54: Côte d'Ivoire | D54: CIV | F54: Sub-Saharan Africa | G54: Lower middle income | H54: IDA | I54: HIPC
A55: 49 | C55: Croatia | D55: HRV | F55: Europe & Central Asia | G55: High income | H55: IBRD
A56: 50 | C56: Cuba | D56: CUB | F56: Latin America & Caribbean | G56: Upper middle income | H56: ..
A57: 51 | C57: Curaçao | D57: CUW | F57: Latin America & Caribbean | G57: High income | H57: ..
A58: 52 | C58: Cyprus | D58: CYP | F58: Europe & Central Asia | G58: High income | H58: .. | I58: EMU
A59: 53 | C59: Czech Republic | D59: CZE | F59: Europe & Central Asia | G59: High income | H59: ..
A60: 54 | C60: Denmark | D60: DNK | F60: Europe & Central Asia | G60: High income | H60: ..
A61: 55 | C61: Djibouti | D61: DJI | F61: Middle East & North Africa | G61: Lower middle income | H61: IDA
A62: 56 | C62: Dominica | D62: DMA | F62: Latin America & Caribbean | G62: Upper middle income | H62: Blend
A63: 57 | C63: Dominican Republic | D63: DOM | F63: Latin America & Caribbean | G63: Upper middle income | H63: IBRD
A64: 58 | C64: Ecuador | D64: ECU | F64: Latin America & Caribbean | G64: Upper middle income | H64: IBRD
A65: 59 | C65: Egypt, Arab Rep. | D65: EGY | F65: Middle East & North Africa | G65: Lower middle income | H65: IBRD
A66: 60 | C66: El Salvador | D66: SLV | F66: Latin America & Caribbean | G66: Lower middle income | H66: IBRD
A67: 61 | C67: Equatorial Guinea | D67: GNQ | F67: Sub-Saharan Africa | G67: Upper middle income | H67: IBRD
A68: 62 | C68: Eritrea | D68: ERI | F68: Sub-Saharan Africa | G68: Low income | H68: IDA | I68: HIPC
A69: 63 | C69: Estonia | D69: EST | F69: Europe & Central Asia | G69: High income | H69: .. | I69: EMU
A70: 64 | C70: Eswatini | D70: SWZ | F70: Sub-Saharan Africa | G70: Lower middle income | H70: IBRD
A71: 65 | C71: Ethiopia | D71: ETH | F71: Sub-Saharan Africa | G71: Low income | H71: IDA | I71: HIPC
A72: 66 | C72: Faroe Islands | D72: FRO | F72: Europe & Central Asia | G72: High income | H72: ..
A73: 67 | C73: Fiji | D73: FJI | F73: East Asia & Pacific | G73: Upper middle income | H73: Blend
A74: 68 | C74: Finland | D74: FIN | F74: Europe & Central Asia | G74: High income | H74: .. | I74: EMU
A75: 69 | C75: France | D75: FRA | F75: Europe & Central Asia | G75: High income | H75: .. | I75: EMU
A76: 70 | C76: French Polynesia | D76: PYF | F76: East Asia & Pacific | G76: High income | H76: ..
A77: 71 | C77: Gabon | D77: GAB | F77: Sub-Saharan Africa | G77: Upper middle income | H77: IBRD
A78: 72 | C78: Gambia, The | D78: GMB | F78: Sub-Saharan Africa | G78: Low income | H78: IDA | I78: HIPC
A79: 73 | C79: Georgia | D79: GEO | F79: Europe & Central Asia | G79: Upper middle income | H79: IBRD
A80: 74 | C80: Germany | D80: DEU | F80: Europe & Central Asia | G80: High income | H80: .. | I80: EMU
A81: 75 | C81: Ghana | D81: GHA | F81: Sub-Saharan Africa | G81: Lower middle income | H81: IDA | I81: HIPC
A82: 76 | C82: Gibraltar | D82: GIB | F82: Europe & Central Asia | G82: High income | H82: ..
A83: 77 | C83: Greece | D83: GRC | F83: Europe & Central Asia | G83: High income | H83: .. | I83: EMU
A84: 78 | C84: Greenland | D84: GRL | F84: Europe & Central Asia | G84: High income | H84: ..
A85: 79 | C85: Grenada | D85: GRD | F85: Latin America & Caribbean | G85: Upper middle income | H85: Blend
A86: 80 | C86: Guam | D86: GUM | F86: East Asia & Pacific | G86: High income | H86: ..
A87: 81 | C87: Guatemala | D87: GTM | F87: Latin America & Caribbean | G87: Upper middle income | H87: IBRD
A88: 82 | C88: Guinea | D88: GIN | F88: Sub-Saharan Africa | G88: Low income | H88: IDA | I88: HIPC
A89: 83 | C89: Guinea-Bissau | D89: GNB | F89: Sub-Saharan Africa | G89: Low income | H89: IDA | I89: HIPC
A90: 84 | C90: Guyana | D90: GUY | F90: Latin America & Caribbean | G90: Upper middle income | H90: IDA | I90: HIPC
A91: 85 | C91: Haiti | D91: HTI | F91: Latin America & Caribbean | G91: Low income | H91: IDA | I91: HIPC
A92: 86 | C92: Honduras | D92: HND | F92: Latin America & Caribbean | G92: Lower middle income | H92: IDA | I92: HIPC
A93: 87 | C93: Hong Kong SAR, China | D93: HKG | F93: East Asia & Pacific | G93: High income | H93: ..
A94: 88 | C94: Hungary | D94: HUN | F94: Europe & Central Asia | G94: High income | H94: ..
A95: 89 | C95: Iceland | D95: ISL | F95: Europe & Central Asia | G95: High income | H95: ..
A96: 90 | C96: India | D96: IND | F96: South Asia | G96: Lower middle income | H96: IBRD
A97: 91 | C97: Indonesia | D97: IDN | F97: East Asia & Pacific | G97: Upper middle income | H97: IBRD
A98: 92 | C98: Iran, Islamic Rep. | D98: IRN | F98: Middle East & North Africa | G98: Upper middle income | H98: IBRD
A99: 93 | C99: Iraq | D99: IRQ | F99: Middle East & North Africa | G99: Upper middle income | H99: IBRD
A100: 94 | C100: Ireland | D100: IRL | F100: Europe & Central Asia | G100: High income | H100: .. | I100: EMU
A101: 95 | C101: Isle of Man | D101: IMN | F101: Europe & Central Asia | G101: High income | H101: ..
A102: 96 | C102: Israel | D102: ISR | F102: Middle East & North Africa | G102: High income | H102: ..
A103: 97 | C103: Italy | D103: ITA | F103: Europe & Central Asia | G103: High income | H103: .. | I103: EMU
A104: 98 | C104: Jamaica | D104: JAM | F104: Latin America & Caribbean | G104: Upper middle income | H104: IBRD
A105: 99 | C105: Japan | D105: JPN | F105: East Asia & Pacific | G105: High income | H105: ..
A106: 100 | C106: Jordan | D106: JOR | F106: Middle East & North Africa | G106: Upper middle income | H106: IBRD
A107: 101 | C107: Kazakhstan | D107: KAZ | F107: Europe & Central Asia | G107: Upper middle income | H107: IBRD
A108: 102 | C108: Kenya | D108: KEN | F108: Sub-Saharan Africa | G108: Lower middle income | H108: Blend
A109: 103 | C109: Kiribati | D109: KIR | F109: East Asia & Pacific | G109: Lower middle income | H109: IDA
A110: 104 | C110: Korea, Dem. People's Rep. | D110: PRK | F110: East Asia & Pacific | G110: Low income | H110: ..
A111: 105 | C111: Korea, Rep. | D111: KOR | F111: East Asia & Pacific | G111: High income | H111: ..
A112: 106 | C112: Kosovo | D112: XKX | F112: Europe & Central Asia | G112: Upper middle income | H112: IDA
A113: 107 | C113: Kuwait | D113: KWT | F113: Middle East & North Africa | G113: High income | H113: ..
A114: 108 | C114: Kyrgyz Republic | D114: KGZ | F114: Europe & Central Asia | G114: Lower middle income | H114: IDA
A115: 109 | C115: Lao PDR | D115: LAO | F115: East Asia & Pacific | G115: Lower middle income | H115: IDA
A116: 110 | C116: Latvia | D116: LVA | F116: Europe & Central Asia | G116: High income | H116: .. | I116: EMU
A117: 111 | C117: Lebanon | D117: LBN | F117: Middle East & North Africa | G117: Upper middle income | H117: IBRD
A118: 112 | C118: Lesotho | D118: LSO | F118: Sub-Saharan Africa | G118: Lower middle income | H118: IDA
A119: 113 | C119: Liberia | D119: LBR | F119: Sub-Saharan Africa | G119: Low income | H119: IDA | I119: HIPC
A120: 114 | C120: Libya | D120: LBY | F120: Middle East & North Africa | G120: Upper middle income | H120: IBRD
A121: 115 | C121: Liechtenstein | D121: LIE | F121: Europe & Central Asia | G121: High income | H121: ..
A122: 116 | C122: Lithuania | D122: LTU | F122: Europe & Central Asia | G122: High income | H122: .. | I122: EMU
A123: 117 | C123: Luxembourg | D123: LUX | F123: Europe & Central Asia | G123: High income | H123: .. | I123: EMU
A124: 118 | C124: Macao SAR, China | D124: MAC | F124: East Asia & Pacific | G124: High income | H124: ..
A125: 119 | C125: Madagascar | D125: MDG | F125: Sub-Saharan Africa | G125: Low income | H125: IDA | I125: HIPC
A126: 120 | C126: Malawi | D126: MWI | F126: Sub-Saharan Africa | G126: Low income | H126: IDA | I126: HIPC
A127: 121 | C127: Malaysia | D127: MYS | F127: East Asia & Pacific | G127: Upper middle income | H127: IBRD
A128: 122 | C128: Maldives | D128: MDV | F128: South Asia | G128: Upper middle income | H128: IDA
A129: 123 | C129: Mali | D129: MLI | F129: Sub-Saharan Africa | G129: Low income | H129: IDA | I129: HIPC
A130: 124 | C130: Malta | D130: MLT | F130: Middle East & North Africa | G130: High income | H130: .. | I130: EMU
A131: 125 | C131: Marshall Islands | D131: MHL | F131: East Asia & Pacific | G131: Upper middle income | H131: IDA
A132: 126 | C132: Mauritania | D132: MRT | F132: Sub-Saharan Africa | G132: Lower middle income | H132: IDA | I132: HIPC
A133: 127 | C133: Mauritius | D133: MUS | F133: Sub-Saharan Africa | G133: High income | H133: IBRD
A134: 128 | C134: Mexico | D134: MEX | F134: Latin America & Caribbean | G134: Upper middle income | H134: IBRD
A135: 129 | C135: Micronesia, Fed. Sts. | D135: FSM | F135: East Asia & Pacific | G135: Lower middle income | H135: IDA
A136: 130 | C136: Moldova | D136: MDA | F136: Europe & Central Asia | G136: Lower middle income | H136: IBRD
A137: 131 | C137: Monaco | D137: MCO | F137: Europe & Central Asia | G137: High income | H137: ..
A138: 132 | C138: Mongolia | D138: MNG | F138: East Asia & Pacific | G138: Lower middle income | H138: IBRD
A139: 133 | C139: Montenegro | D139: MNE | F139: Europe & Central Asia | G139: Upper middle income | H139: IBRD
A140: 134 | C140: Morocco | D140: MAR | F140: Middle East & North Africa | G140: Lower middle income | H140: IBRD
A141: 135 | C141: Mozambique | D141: MOZ | F141: Sub-Saharan Africa | G141: Low income | H141: IDA | I141: HIPC
A142: 136 | C142: Myanmar | D142: MMR | F142: East Asia & Pacific | G142: Lower middle income | H142: IDA
A143: 137 | C143: Namibia | D143: NAM | F143: Sub-Saharan Africa | G143: Upper middle income | H143: IBRD
A144: 138 | C144: Nauru | D144: NRU | F144: East Asia & Pacific | G144: High income | H144: IBRD
A145: 139 | C145: Nepal | D145: NPL | F145: South Asia | G145: Lower middle income | H145: IDA
A146: 140 | C146: Netherlands | D146: NLD | F146: Europe & Central Asia | G146: High income | H146: .. | I146: EMU
A147: 141 | C147: New Caledonia | D147: NCL | F147: East Asia & Pacific | G147: High income | H147: ..
A148: 142 | C148: New Zealand | D148: NZL | F148: East Asia & Pacific | G148: High income | H148: ..
A149: 143 | C149: Nicaragua | D149: NIC | F149: Latin America & Caribbean | G149: Lower middle income | H149: IDA | I149: HIPC
A150: 144 | C150: Niger | D150: NER | F150: Sub-Saharan Africa | G150: Low income | H150: IDA | I150: HIPC
A151: 145 | C151: Nigeria | D151: NGA | F151: Sub-Saharan Africa | G151: Lower middle income | H151: Blend
A152: 146 | C152: North Macedonia | D152: MKD | F152: Europe & Central Asia | G152: Upper middle income | H152: IBRD
A153: 147 | C153: Northern Mariana Islands | D153: MNP | F153: East Asia & Pacific | G153: High income | H153: ..
A154: 148 | C154: Norway | D154: NOR | F154: Europe & Central Asia | G154: High income | H154: ..
A155: 149 | C155: Oman | D155: OMN | F155: Middle East & North Africa | G155: High income | H155: ..
A156: 150 | C156: Pakistan | D156: PAK | F156: South Asia | G156: Lower middle income | H156: Blend
A157: 151 | C157: Palau | D157: PLW | F157: East Asia & Pacific | G157: High income | H157: IBRD
A158: 152 | C158: Panama | D158: PAN | F158: Latin America & Caribbean | G158: High income | H158: IBRD
A159: 153 | C159: Papua New Guinea | D159: PNG | F159: East Asia & Pacific | G159: Lower middle income | H159: Blend
A160: 154 | C160: Paraguay | D160: PRY | F160: Latin America & Caribbean | G160: Upper middle income | H160: IBRD
A161: 155 | C161: Peru | D161: PER | F161: Latin America & Caribbean | G161: Upper middle income | H161: IBRD
A162: 156 | C162: Philippines | D162: PHL | F162: East Asia & Pacific | G162: Lower middle income | H162: IBRD
A163: 157 | C163: Poland | D163: POL | F163: Europe & Central Asia | G163: High income | H163: IBRD
A164: 158 | C164: Portugal | D164: PRT | F164: Europe & Central Asia | G164: High income | H164: .. | I164: EMU
A165: 159 | C165: Puerto Rico | D165: PRI | F165: Latin America & Caribbean | G165: High income | H165: ..
A166: 160 | C166: Qatar | D166: QAT | F166: Middle East & North Africa | G166: High income | H166: ..
A167: 161 | C167: Romania | D167: ROU | F167: Europe & Central Asia | G167: High income | H167: IBRD
A168: 162 | C168: Russian Federation | D168: RUS | F168: Europe & Central Asia | G168: Upper middle income | H168: IBRD
A169: 163 | C169: Rwanda | D169: RWA | F169: Sub-Saharan Africa | G169: Low income | H169: IDA | I169: HIPC
A170: 164 | C170: Samoa | D170: WSM | F170: East Asia & Pacific | G170: Upper middle income | H170: IDA
A171: 165 | C171: San Marino | D171: SMR | F171: Europe & Central Asia | G171: High income | H171: ..
A172: 166 | C172: São Tomé and Principe | D172: STP | F172: Sub-Saharan Africa | G172: Lower middle income | H172: IDA | I172: HIPC
A173: 167 | C173: Saudi Arabia | D173: SAU | F173: Middle East & North Africa | G173: High income | H173: ..
A174: 168 | C174: Senegal | D174: SEN | F174: Sub-Saharan Africa | G174: Lower middle income | H174: IDA | I174: HIPC
A175: 169 | C175: Serbia | D175: SRB | F175: Europe & Central Asia | G175: Upper middle income | H175: IBRD
A176: 170 | C176: Seychelles | D176: SYC | F176: Sub-Saharan Africa | G176: High income | H176: IBRD
A177: 171 | C177: Sierra Leone | D177: SLE | F177: Sub-Saharan Africa | G177: Low income | H177: IDA | I177: HIPC
A178: 172 | C178: Singapore | D178: SGP | F178: East Asia & Pacific | G178: High income | H178: ..
A179: 173 | C179: Sint Maarten (Dutch part) | D179: SXM | F179: Latin America & Caribbean | G179: High income | H179: ..
A180: 174 | C180: Slovak Republic | D180: SVK | F180: Europe & Central Asia | G180: High income | H180: .. | I180: EMU
A181: 175 | C181: Slovenia | D181: SVN | F181: Europe & Central Asia | G181: High income | H181: .. | I181: EMU
A182: 176 | C182: Solomon Islands | D182: SLB | F182: East Asia & Pacific | G182: Lower middle income | H182: IDA
A183: 177 | C183: Somalia | D183: SOM | F183: Sub-Saharan Africa | G183: Low income | H183: IDA | I183: HIPC
A184: 178 | C184: South Africa | D184: ZAF | F184: Sub-Saharan Africa | G184: Upper middle income | H184: IBRD
A185: 179 | C185: South Sudan | D185: SSD | F185: Sub-Saharan Africa | G185: Low income | H185: IDA
A186: 180 | C186: Spain | D186: ESP | F186: Europe & Central Asia | G186: High income | H186: .. | I186: EMU
A187: 181 | C187: Sri Lanka | D187: LKA | F187: South Asia | G187: Lower middle income | H187: IBRD
A188: 182 | C188: St. Kitts and Nevis | D188: KNA | F188: Latin America & Caribbean | G188: High income | H188: IBRD
A189: 183 | C189: St. Lucia | D189: LCA | F189: Latin America & Caribbean | G189: Upper middle income | H189: Blend
A190: 184 | C190: St. Martin (French part) | D190: MAF | F190: Latin America & Caribbean | G190: High income | H190: ..
A191: 185 | C191: St. Vincent and the Grenadines | D191: VCT | F191: Latin America & Caribbean | G191: Upper middle income | H191: Blend
A192: 186 | C192: Sudan | D192: SDN | F192: Sub-Saharan Africa | G192: Low income | H192: IDA | I192: HIPC
A193: 187 | C193: Suriname | D193: SUR | F193: Latin America & Caribbean | G193: Upper middle income | H193: IBRD
A194: 188 | C194: Sweden | D194: SWE | F194: Europe & Central Asia | G194: High income | H194: ..
A195: 189 | C195: Switzerland | D195: CHE | F195: Europe & Central Asia | G195: High income | H195: ..
A196: 190 | C196: Syrian Arab Republic | D196: SYR | F196: Middle East & North Africa | G196: Low income | H196: IDA
A197: 191 | C197: Taiwan, China | D197: TWN | F197: East Asia & Pacific | G197: High income | H197: ..
A198: 192 | C198: Tajikistan | D198: TJK | F198: Europe & Central Asia | G198: Low income | H198: IDA
A199: 193 | C199: Tanzania | D199: TZA | F199: Sub-Saharan Africa | G199: Lower middle income | H199: IDA | I199: HIPC
A200: 194 | C200: Thailand | D200: THA | F200: East Asia & Pacific | G200: Upper middle income | H200: IBRD
A201: 195 | C201: Timor-Leste | D201: TLS | F201: East Asia & Pacific | G201: Lower middle income | H201: Blend
A202: 196 | C202: Togo | D202: TGO | F202: Sub-Saharan Africa | G202: Low income | H202: IDA | I202: HIPC
... 74 more rows
